Workbook

Sheet IDP and Returnee esti
A1: Reporting_Month | B1: IDP_Returnees | C1: Mohafaza | D1: Mohafaza PCODE | E1: Mantika | F1: Mantika PCODE | G1: Nahya | H1: Nahya PCODE | I1: Community | J1: Community PCODE | K1: IDP_Flow_Estimation
A2: 2019-04-01 | B2: IDP | C2: Hama | D2: SY05 | E2: As-Suqaylabiyah | F2: SY0502 | G2: Madiq Castle | H2: SY050204 | I2: Sehriyeh | J2: C3204 | K2: 97
A3: 2019-04-01 | B3: IDP | C3: Hama | D3: SY05 | E3: As-Suqaylabiyah | F3: SY0502 | G3: Ziyara | H3: SY050202 | I3: Al Zaqoum | J3: C6710 | K3: 188
A4: 2019-04-01 | B4: IDP | C4: Hama | D4: SY05 | E4: As-Suqaylabiyah | F4: SY0502 | G4: Ziyara | H4: SY050202 | I4: Doqmaq | J4: C3156 | K4: 126
A5: 2019-04-01 | B5: IDP | C5: Aleppo | D5: SY02 | E5: Azaz | F5: SY0204 | G5: Aghtrin | H5: SY020401 | I5: Abla | J5: C1584 | K5: 46
A6: 2019-04-01 | B6: IDP | C6: Aleppo | D6: SY02 | E6: Azaz | F6: SY0204 | G6: Aghtrin | H6: SY020401 | I6: Akhtrein | J6: C1581 | K6: 51
A7: 2019-04-01 | B7: IDP | C7: Aleppo | D7: SY02 | E7: Azaz | F7: SY0204 | G7: Aghtrin | H7: SY020401 | I7: Al-Kamaliya | J7: C8228 | K7: 29
A8: 2019-04-01 | B8: IDP | C8: Aleppo | D8: SY02 | E8: Azaz | F8: SY0204 | G8: Aghtrin | H8: SY020401 | I8: Aziziyeh | J8: C1578 | K8: 5
A9: 2019-04-01 | B9: IDP | C9: Aleppo | D9: SY02 | E9: Azaz | F9: SY0204 | G9: Aghtrin | H9: SY020401 | I9: Baruz | J9: C1582 | K9: 13.5
A10: 2019-04-01 | B10: IDP | C10: Aleppo | D10: SY02 | E10: Azaz | F10: SY0204 | G10: Aghtrin | H10: SY020401 | I10: Dabeq | J10: C1597 | K10: 21.5
A11: 2019-04-01 | B11: IDP | C11: Aleppo | D11: SY02 | E11: Azaz | F11: SY0204 | G11: Aghtrin | H11: SY020401 | I11: Ghaytun | J11: C1614 | K11: 40
A12: 2019-04-01 | B12: IDP | C12: Aleppo | D12: SY02 | E12: Azaz | F12: SY0204 | G12: Aghtrin | H12: SY020401 | I12: Jakkeh | J12: C1600 | K12: 17
A13: 2019-04-01 | B13: IDP | C13: Aleppo | D13: SY02 | E13: Azaz | F13: SY0204 | G13: Aghtrin | H13: SY020401 | I13: Kaeebeh | J13: C1609 | K13: 91
A14: 2019-04-01 | B14: IDP | C14: Aleppo | D14: SY02 | E14: Azaz | F14: SY0204 | G14: Aghtrin | H14: SY020401 | I14: Khalfatli | J14: C1576 | K14: 22
A15: 2019-04-01 | B15: IDP | C15: Aleppo | D15: SY02 | E15: Azaz | F15: SY0204 | G15: Aghtrin | H15: SY020401 | I15: Masudiyeh | J15: C1599 | K15: 17
A16: 2019-04-01 | B16: IDP | C16: Aleppo | D16: SY02 | E16: Azaz | F16: SY0204 | G16: Aghtrin | H16: SY020401 | I16: Qabtan | J16: C1611 | K16: 23
A17: 2019-04-01 | B17: IDP | C17: Aleppo | D17: SY02 | E17: Azaz | F17: SY0204 | G17: Aghtrin | H17: SY020401 | I17: Shabanyiha | J17: C8244 | K17: 17
A18: 2019-04-01 | B18: IDP | C18: Aleppo | D18: SY02 | E18: Azaz | F18: SY0204 | G18: Aghtrin | H18: SY020401 | I18: Turkman Bareh | J18: C1605 | K18: 10.5
A19: 2019-04-01 | B19: IDP | C19: Aleppo | D19: SY02 | E19: Azaz | F19: SY0204 | G19: Aghtrin | H19: SY020401 | I19: Tuwainiyah | J19: C7487 | K19: 5
A20: 2019-04-01 | B20: IDP | C20: Aleppo | D20: SY02 | E20: Azaz | F20: SY0204 | G20: Aghtrin | H20: SY020401 | I20: Zayadiyeh | J20: C1579 | K20: 45
A21: 2019-04-01 | B21: IDP | C21: Aleppo | D21: SY02 | E21: Azaz | F21: SY0204 | G21: Azaz | H21: SY020400 | I21: Azaz | J21: C1564 | K21: 287
A22: 2019-04-01 | B22: IDP | C22: Aleppo | D22: SY02 | E22: Azaz | F22: SY0204 | G22: Azaz | H22: SY020400 | I22: Bab Alsalameh | J22: C6669 | K22: 52
A23: 2019-04-01 | B23: IDP | C23: Aleppo | D23: SY02 | E23: Azaz | F23: SY0204 | G23: Azaz | H23: SY020400 | I23: Ferziyeh | J23: C1560 | K23: 6
A24: 2019-04-01 | B24: IDP | C24: Aleppo | D24: SY02 | E24: Azaz | F24: SY0204 | G24: Azaz | H24: SY020400 | I24: Kaljibrin | J24: C1575 | K24: 73
A25: 2019-04-01 | B25: IDP | C25: Aleppo | D25: SY02 | E25: Azaz | F25: SY0204 | G25: Azaz | H25: SY020400 | I25: Niddeh | J25: C1572 | K25: 11
A26: 2019-04-01 | B26: IDP | C26: Aleppo | D26: SY02 | E26: Azaz | F26: SY0204 | G26: Azaz | H26: SY020400 | I26: Salama | J26: C1561 | K26: 11
A27: 2019-04-01 | B27: IDP | C27: Aleppo | D27: SY02 | E27: Azaz | F27: SY0204 | G27: Azaz | H27: SY020400 | I27: Shamarin | J27: C1566 | K27: 172
A28: 2019-04-01 | B28: IDP | C28: Aleppo | D28: SY02 | E28: Azaz | F28: SY0204 | G28: Azaz | H28: SY020400 | I28: Shmarekh | J28: C1557 | K28: 85
A29: 2019-04-01 | B29: IDP | C29: Aleppo | D29: SY02 | E29: Azaz | F29: SY0204 | G29: Azaz | H29: SY020400 | I29: Tatiyeh | J29: C1558 | K29: 11
A30: 2019-04-01 | B30: IDP | C30: Aleppo | D30: SY02 | E30: Jebel Saman | F30: SY0200 | G30: Zarbah | H30: SY020005 | I30: Jeb Kas | J30: C1166 | K30: 17
A31: 2019-04-01 | B31: IDP | C31: Aleppo | D31: SY02 | E31: Jebel Saman | F31: SY0200 | G31: Zarbah | H31: SY020005 | I31: Zarbah | J31: C1170 | K31: 34
A32: 2019-04-01 | B32: IDP | C32: Aleppo | D32: SY02 | E32: Jebel Saman | F32: SY0200 | G32: Jebel Saman | H32: SY020000 | I32: Al-Kalariyah | J32: C8067 | K32: 68
A33: 2019-04-01 | B33: IDP | C33: Aleppo | D33: SY02 | E33: Jebel Saman | F33: SY0200 | G33: Jebel Saman | H33: SY020000 | I33: Kafr Dael | J33: C6426 | K33: 108
A34: 2019-04-01 | B34: IDP | C34: Aleppo | D34: SY02 | E34: Jebel Saman | F34: SY0200 | G34: Jebel Saman | H34: SY020000 | I34: Khan Al-Asal | J34: C6428 | K34: 20
A35: 2019-04-01 | B35: IDP | C35: Aleppo | D35: SY02 | E35: Jebel Saman | F35: SY0200 | G35: Jebel Saman | H35: SY020000 | I35: Zuhrat Madain | J35: C7355 | K35: 30
A36: 2019-04-01 | B36: IDP | C36: Aleppo | D36: SY02 | E36: Jebel Saman | F36: SY0200 | G36: Daret Azza | H36: SY020004 | I36: Anjara | J36: C1144 | K36: 175
A37: 2019-04-01 | B37: IDP | C37: Aleppo | D37: SY02 | E37: Jebel Saman | F37: SY0200 | G37: Daret Azza | H37: SY020004 | I37: Arhab | J37: C1142 | K37: 40
A38: 2019-04-01 | B38: IDP | C38: Aleppo | D38: SY02 | E38: Jebel Saman | F38: SY0200 | G38: Daret Azza | H38: SY020004 | I38: Bala | J38: C6756 | K38: 20
A39: 2019-04-01 | B39: IDP | C39: Aleppo | D39: SY02 | E39: Jebel Saman | F39: SY0200 | G39: Daret Azza | H39: SY020004 | I39: Bishqatine | J39: C1145 | K39: 35
A40: 2019-04-01 | B40: IDP | C40: Aleppo | D40: SY02 | E40: Jebel Saman | F40: SY0200 | G40: Daret Azza | H40: SY020004 | I40: Daret Azza | J40: C1139 | K40: 26.5
A41: 2019-04-01 | B41: IDP | C41: Aleppo | D41: SY02 | E41: Jebel Saman | F41: SY0200 | G41: Daret Azza | H41: SY020004 | I41: Deir Samaan | J41: C6766 | K41: 115
A42: 2019-04-01 | B42: IDP | C42: Aleppo | D42: SY02 | E42: Jebel Saman | F42: SY0200 | G42: Daret Azza | H42: SY020004 | I42: Jamiyat Azar | J42: C7393 | K42: 10
A43: 2019-04-01 | B43: IDP | C43: Aleppo | D43: SY02 | E43: Jebel Saman | F43: SY0200 | G43: Daret Azza | H43: SY020004 | I43: Kafrantin | J43: C1149 | K43: 15
A44: 2019-04-01 | B44: IDP | C44: Aleppo | D44: SY02 | E44: Jebel Saman | F44: SY0200 | G44: Daret Azza | H44: SY020004 | I44: Majbineh | J44: C1148 | K44: 100
A45: 2019-04-01 | B45: IDP | C45: Aleppo | D45: SY02 | E45: Jebel Saman | F45: SY0200 | G45: Daret Azza | H45: SY020004 | I45: Qasemiyeh | J45: C8085 | K45: 100
A46: 2019-04-01 | B46: IDP | C46: Aleppo | D46: SY02 | E46: Jebel Saman | F46: SY0200 | G46: Daret Azza | H46: SY020004 | I46: Salloum | J46: C8087 | K46: 175
A47: 2019-04-01 | B47: IDP | C47: Aleppo | D47: SY02 | E47: Jebel Saman | F47: SY0200 | G47: Daret Azza | H47: SY020004 | I47: Tqad | J47: C1143 | K47: 250
A48: 2019-04-01 | B48: IDP | C48: Aleppo | D48: SY02 | E48: Jebel Saman | F48: SY0200 | G48: Daret Azza | H48: SY020004 | I48: Zarzita | J48: C1138 | K48: 250
A49: 2019-04-01 | B49: IDP | C49: Aleppo | D49: SY02 | E49: Jebel Saman | F49: SY0200 | G49: Atareb | H49: SY020001 | I49: Abin Samaan | J49: C1026 | K49: 416
A50: 2019-04-01 | B50: IDP | C50: Aleppo | D50: SY02 | E50: Jebel Saman | F50: SY0200 | G50: Atareb | H50: SY020001 | I50: Abzemo | J50: C1030 | K50: 97
A51: 2019-04-01 | B51: IDP | C51: Aleppo | D51: SY02 | E51: Jebel Saman | F51: SY0200 | G51: Atareb | H51: SY020001 | I51: Ajel | J51: C6753 | K51: 60
A52: 2019-04-01 | B52: IDP | C52: Aleppo | D52: SY02 | E52: Jebel Saman | F52: SY0200 | G52: Atareb | H52: SY020001 | I52: Halazon | J52: C6424 | K52: 200
A53: 2019-04-01 | B53: IDP | C53: Aleppo | D53: SY02 | E53: Jebel Saman | F53: SY0200 | G53: Atareb | H53: SY020001 | I53: Jeineh | J53: C1032 | K53: 25
A54: 2019-04-01 | B54: IDP | C54: Aleppo | D54: SY02 | E54: Jebel Saman | F54: SY0200 | G54: Atareb | H54: SY020001 | I54: Kafr Karmin | J54: C1035 | K54: 57
A55: 2019-04-01 | B55: IDP | C55: Aleppo | D55: SY02 | E55: Jebel Saman | F55: SY0200 | G55: Atareb | H55: SY020001 | I55: Kafr Noran | J55: C1041 | K55: 114
A56: 2019-04-01 | B56: IDP | C56: Aleppo | D56: SY02 | E56: Jebel Saman | F56: SY0200 | G56: Atareb | H56: SY020001 | I56: Oweijel | J56: C1024 | K56: 140
A57: 2019-04-01 | B57: IDP | C57: Aleppo | D57: SY02 | E57: Jebel Saman | F57: SY0200 | G57: Atareb | H57: SY020001 | I57: Sahara | J57: C1023 | K57: 114
A58: 2019-04-01 | B58: IDP | C58: Aleppo | D58: SY02 | E58: Jebel Saman | F58: SY0200 | G58: Atareb | H58: SY020001 | I58: Sheikh Ali | J58: C1031 | K58: 86
A59: 2019-04-01 | B59: IDP | C59: Aleppo | D59: SY02 | E59: Jebel Saman | F59: SY0200 | G59: Atareb | H59: SY020001 | I59: Tadil | J59: C1028 | K59: 86
A60: 2019-04-01 | B60: IDP | C60: Aleppo | D60: SY02 | E60: Jebel Saman | F60: SY0200 | G60: Atareb | H60: SY020001 | I60: Tuwama | J60: C1020 | K60: 40
A61: 2019-04-01 | B61: IDP | C61: Aleppo | D61: SY02 | E61: Jebel Saman | F61: SY0200 | G61: Atareb | H61: SY020001 | I61: Western Kafr Jum | J61: C1040 | K61: 250
A62: 2019-04-01 | B62: IDP | C62: Aleppo | D62: SY02 | E62: Jarablus | F62: SY0208 | G62: Jarablus | H62: SY020800 | I62: Ayn Al Bayda | J62: C7629 | K62: 16.5
A63: 2019-04-01 | B63: IDP | C63: Aleppo | D63: SY02 | E63: Jarablus | F63: SY0208 | G63: Jarablus | H63: SY020800 | I63: Bablan | J63: C8264 | K63: 23
A64: 2019-04-01 | B64: IDP | C64: Aleppo | D64: SY02 | E64: Jarablus | F64: SY0208 | G64: Jarablus | H64: SY020800 | I64: Dulaym | J64: C7593 | K64: 11
A65: 2019-04-01 | B65: IDP | C65: Aleppo | D65: SY02 | E65: Jarablus | F65: SY0208 | G65: Jarablus | H65: SY020800 | I65: Halawaniyeh | J65: C2219 | K65: 74
A66: 2019-04-01 | B66: IDP | C66: Aleppo | D66: SY02 | E66: Jarablus | F66: SY0208 | G66: Jarablus | H66: SY020800 | I66: Hjeileh - Jrables | J66: C2215 | K66: 17
A67: 2019-04-01 | B67: IDP | C67: Aleppo | D67: SY02 | E67: Jarablus | F67: SY0208 | G67: Jarablus | H67: SY020800 | I67: Jarablus | J67: C2227 | K67: 1152
A68: 2019-04-01 | B68: IDP | C68: Aleppo | D68: SY02 | E68: Jarablus | F68: SY0208 | G68: Jarablus | H68: SY020800 | I68: Lower Jrables | J68: C2226 | K68: 112
A69: 2019-04-01 | B69: IDP | C69: Aleppo | D69: SY02 | E69: Jarablus | F69: SY0208 | G69: Jarablus | H69: SY020800 | I69: Maghayer - Qorq Mghar | J69: C2218 | K69: 28
A70: 2019-04-01 | B70: IDP | C70: Aleppo | D70: SY02 | E70: Jarablus | F70: SY0208 | G70: Jarablus | H70: SY020800 | I70: Mahsana - Mahsanli | J70: C2232 | K70: 23
A71: 2019-04-01 | B71: IDP | C71: Aleppo | D71: SY02 | E71: Jarablus | F71: SY0208 | G71: Jarablus | H71: SY020800 | I71: Marma Elhajar | J71: C2238 | K71: 84
A72: 2019-04-01 | B72: IDP | C72: Aleppo | D72: SY02 | E72: Jarablus | F72: SY0208 | G72: Jarablus | H72: SY020800 | I72: Tall Shair | J72: C7665 | K72: 50
A73: 2019-04-01 | B73: IDP | C73: Aleppo | D73: SY02 | E73: Jarablus | F73: SY0208 | G73: Jarablus | H73: SY020800 | I73: Thahr Elmaghayer | J73: C2221 | K73: 22
A74: 2019-04-01 | B74: IDP | C74: Aleppo | D74: SY02 | E74: Jarablus | F74: SY0208 | G74: Jarablus | H74: SY020800 | I74: Treikhem | J74: C2222 | K74: 23
A75: 2019-04-01 | B75: IDP | C75: Aleppo | D75: SY02 | E75: Jarablus | F75: SY0208 | G75: Jarablus | H75: SY020800 | I75: Upper Um Rotha | J75: C2225 | K75: 34
A76: 2019-04-01 | B76: IDP | C76: Aleppo | D76: SY02 | E76: Jarablus | F76: SY0208 | G76: Jarablus | H76: SY020800 | I76: Yusef Elbeik | J76: C2236 | K76: 28
A77: 2019-04-01 | B77: IDP | C77: Aleppo | D77: SY02 | E77: Jarablus | F77: SY0208 | G77: Jarablus | H77: SY020800 | I77: Zoghra | J77: C2220 | K77: 63
A78: 2019-04-01 | B78: IDP | C78: Aleppo | D78: SY02 | E78: Jarablus | F78: SY0208 | G78: Ghandorah | H78: SY020801 | I78: Arab Azzah | J78: C2242 | K78: 17
A79: 2019-04-01 | B79: IDP | C79: Aleppo | D79: SY02 | E79: Jarablus | F79: SY0208 | G79: Ghandorah | H79: SY020801 | I79: Big Mortafaa | J79: C2265 | K79: 29
A80: 2019-04-01 | B80: IDP | C80: Aleppo | D80: SY02 | E80: Jarablus | F80: SY0208 | G80: Ghandorah | H80: SY020801 | I80: Big Nabgha | J80: C2264 | K80: 262
A81: 2019-04-01 | B81: IDP | C81: Aleppo | D81: SY02 | E81: Jarablus | F81: SY0208 | G81: Ghandorah | H81: SY020801 | I81: Ghanameh | J81: C2266 | K81: 34
A82: 2019-04-01 | B82: IDP | C82: Aleppo | D82: SY02 | E82: Jarablus | F82: SY0208 | G82: Ghandorah | H82: SY020801 | I82: Ghandorah | J82: C2250 | K82: 399
A83: 2019-04-01 | B83: IDP | C83: Aleppo | D83: SY02 | E83: Jarablus | F83: SY0208 | G83: Ghandorah | H83: SY020801 | I83: Ghassaniyeh - Jrables | J83: C2251 | K83: 33
A84: 2019-04-01 | B84: IDP | C84: Aleppo | D84: SY02 | E84: Jarablus | F84: SY0208 | G84: Ghandorah | H84: SY020801 | I84: Hfeira | J84: C2243 | K84: 23
A85: 2019-04-01 | B85: IDP | C85: Aleppo | D85: SY02 | E85: Jarablus | F85: SY0208 | G85: Ghandorah | H85: SY020801 | I85: Jeb Eldam Jrables | J85: C2262 | K85: 17
A86: 2019-04-01 | B86: IDP | C86: Aleppo | D86: SY02 | E86: Jarablus | F86: SY0208 | G86: Ghandorah | H86: SY020801 | I86: Kuliyeh | J86: C2247 | K86: 45
A87: 2019-04-01 | B87: IDP | C87: Aleppo | D87: SY02 | E87: Jarablus | F87: SY0208 | G87: Ghandorah | H87: SY020801 | I87: Little Arab Hasan | J87: C2256 | K87: 344
A88: 2019-04-01 | B88: IDP | C88: Aleppo | D88: SY02 | E88: Jarablus | F88: SY0208 | G88: Ghandorah | H88: SY020801 | I88: Qadi Jrables | J88: C2254 | K88: 86
A89: 2019-04-01 | B89: IDP | C89: Aleppo | D89: SY02 | E89: Jarablus | F89: SY0208 | G89: Ghandorah | H89: SY020801 | I89: Qubbet Elturkman | J89: C2263 | K89: 80
A90: 2019-04-01 | B90: IDP | C90: Aleppo | D90: SY02 | E90: Jarablus | F90: SY0208 | G90: Ghandorah | H90: SY020801 | I90: Ras Al Joz | J90: C7619 | K90: 28
A91: 2019-04-01 | B91: IDP | C91: Aleppo | D91: SY02 | E91: Jarablus | F91: SY0208 | G91: Ghandorah | H91: SY020801 | I91: Sabuniyeh | J91: C2255 | K91: 11
A92: 2019-04-01 | B92: IDP | C92: Aleppo | D92: SY02 | E92: Jarablus | F92: SY0208 | G92: Ghandorah | H92: SY020801 | I92: Shahid | J92: C2261 | K92: 17
A93: 2019-04-01 | B93: IDP | C93: Aleppo | D93: SY02 | E93: Jarablus | F93: SY0208 | G93: Ghandorah | H93: SY020801 | I93: Sheib | J93: C2253 | K93: 29
A94: 2019-04-01 | B94: IDP | C94: Aleppo | D94: SY02 | E94: Jarablus | F94: SY0208 | G94: Ghandorah | H94: SY020801 | I94: Sheineh | J94: C2248 | K94: 39
A95: 2019-04-01 | B95: IDP | C95: Aleppo | D95: SY02 | E95: Jarablus | F95: SY0208 | G95: Ghandorah | H95: SY020801 | I95: Sweida - Qorret Tashli | J95: C2259 | K95: 80
A96: 2019-04-01 | B96: IDP | C96: Aleppo | D96: SY02 | E96: Jarablus | F96: SY0208 | G96: Ghandorah | H96: SY020801 | I96: Tal Aghbar - Tal Elagher | J96: C2260 | K96: 124
A97: 2019-04-01 | B97: IDP | C97: Aleppo | D97: SY02 | E97: Jarablus | F97: SY0208 | G97: Ghandorah | H97: SY020801 | I97: Tal Ali - Karbajli | J97: C2245 | K97: 28
A98: 2019-04-01 | B98: IDP | C98: Aleppo | D98: SY02 | E98: Jarablus | F98: SY0208 | G98: Ghandorah | H98: SY020801 | I98: Tal Elhajar - Tal Elahamar | J98: C2244 | K98: 79
A99: 2019-04-01 | B99: IDP | C99: Aleppo | D99: SY02 | E99: Jarablus | F99: SY0208 | G99: Ghandorah | H99: SY020801 | I99: Thaheriya Jrables | J99: C2257 | K99: 80
A100: 2019-04-01 | B100: IDP | C100: Aleppo | D100: SY02 | E100: Al Bab | F100: SY0202 | G100: Ar-Raee | H100: SY020203 | I100: Ar-Ra'ee | J100: C1250 | K100: 97
A101: 2019-04-01 | B101: IDP | C101: Aleppo | D101: SY02 | E101: Al Bab | F101: SY0202 | G101: Ar-Raee | H101: SY020203 | I101: Atharia | J101: C1264 | K101: 52
A102: 2019-04-01 | B102: IDP | C102: Aleppo | D102: SY02 | E102: Al Bab | F102: SY0202 | G102: Ar-Raee | H102: SY020203 | I102: Ayubiyeh | J102: C8218 | K102: 46
A103: 2019-04-01 | B103: IDP | C103: Aleppo | D103: SY02 | E103: Al Bab | F103: SY0202 | G103: Ar-Raee | H103: SY020203 | I103: Bab Laymun | J103: C1272 | K103: 28
A104: 2019-04-01 | B104: IDP | C104: Aleppo | D104: SY02 | E104: Al Bab | F104: SY0202 | G104: Ar-Raee | H104: SY020203 | I104: Hadabat | J104: C1273 | K104: 23
A105: 2019-04-01 | B105: IDP | C105: Aleppo | D105: SY02 | E105: Al Bab | F105: SY0202 | G105: Ar-Raee | H105: SY020203 | I105: Haji Kusa | J105: C1253 | K105: 29
A106: 2019-04-01 | B106: IDP | C106: Aleppo | D106: SY02 | E106: Al Bab | F106: SY0202 | G106: Ar-Raee | H106: SY020203 | I106: Hleisa | J106: C1251 | K106: 34
A107: 2019-04-01 | B107: IDP | C107: Aleppo | D107: SY02 | E107: Al Bab | F107: SY0202 | G107: Ar-Raee | H107: SY020203 | I107: Karsanli | J107: C1274 | K107: 69
A108: 2019-04-01 | B108: IDP | C108: Aleppo | D108: SY02 | E108: Al Bab | F108: SY0202 | G108: Ar-Raee | H108: SY020203 | I108: Matmana | J108: C1249 | K108: 51
A109: 2019-04-01 | B109: IDP | C109: Aleppo | D109: SY02 | E109: Al Bab | F109: SY0202 | G109: Ar-Raee | H109: SY020203 | I109: Qantaret Elbab | J109: C1275 | K109: 51
A110: 2019-04-01 | B110: IDP | C110: Aleppo | D110: SY02 | E110: Al Bab | F110: SY0202 | G110: Ar-Raee | H110: SY020203 | I110: Sandi | J110: C1248 | K110: 23
A111: 2019-04-01 | B111: IDP | C111: Aleppo | D111: SY02 | E111: Al Bab | F111: SY0202 | G111: Ar-Raee | H111: SY020203 | I111: Shawa | J111: C1255 | K111: 69
A112: 2019-04-01 | B112: IDP | C112: Aleppo | D112: SY02 | E112: Al Bab | F112: SY0202 | G112: Ar-Raee | H112: SY020203 | I112: Tal Ahmar | J112: C8238 | K112: 17
A113: 2019-04-01 | B113: IDP | C113: Aleppo | D113: SY02 | E113: Al Bab | F113: SY0202 | G113: Ar-Raee | H113: SY020203 | I113: Tal Atieh | J113: C1271 | K113: 34
A114: 2019-04-01 | B114: IDP | C114: Aleppo | D114: SY02 | E114: Al Bab | F114: SY0202 | G114: Ar-Raee | H114: SY020203 | I114: Tal Elhawa | J114: C1269 | K114: 11
A115: 2019-04-01 | B115: IDP | C115: Aleppo | D115: SY02 | E115: Al Bab | F115: SY0202 | G115: Ar-Raee | H115: SY020203 | I115: Tweiran | J115: C1259 | K115: 17
A116: 2019-04-01 | B116: IDP | C116: Aleppo | D116: SY02 | E116: Al Bab | F116: SY0202 | G116: Ar-Raee | H116: SY020203 | I116: Zalaf | J116: C1266 | K116: 34
A117: 2019-04-01 | B117: IDP | C117: Aleppo | D117: SY02 | E117: Al Bab | F117: SY0202 | G117: Ar-Raee | H117: SY020203 | I117: Zyaret Elbab | J117: C1268 | K117: 17
A118: 2019-04-01 | B118: IDP | C118: Aleppo | D118: SY02 | E118: Al Bab | F118: SY0202 | G118: Al Bab | H118: SY020200 | I118: Al Azraq | J118: C7466 | K118: 23
A119: 2019-04-01 | B119: IDP | C119: Aleppo | D119: SY02 | E119: Al Bab | F119: SY0202 | G119: Al Bab | H119: SY020200 | I119: Al Bab | J119: C1202 | K119: 2471
A120: 2019-04-01 | B120: IDP | C120: Aleppo | D120: SY02 | E120: Al Bab | F120: SY0202 | G120: Al Bab | H120: SY020200 | I120: Bazagha | J120: C1188 | K120: 199
A121: 2019-04-01 | B121: IDP | C121: Aleppo | D121: SY02 | E121: Al Bab | F121: SY0202 | G121: Al Bab | H121: SY020200 | I121: Dana | J121: C8154 | K121: 45
A122: 2019-04-01 | B122: IDP | C122: Aleppo | D122: SY02 | E122: Al Bab | F122: SY0202 | G122: Al Bab | H122: SY020200 | I122: Hadath | J122: C1198 | K122: 57
A123: 2019-04-01 | B123: IDP | C123: Aleppo | D123: SY02 | E123: Al Bab | F123: SY0202 | G123: Al Bab | H123: SY020200 | I123: Hazwan | J123: C1191 | K123: 119
A124: 2019-04-01 | B124: IDP | C124: Aleppo | D124: SY02 | E124: Al Bab | F124: SY0202 | G124: Al Bab | H124: SY020200 | I124: Noman | J124: C1213 | K124: 39
A125: 2019-04-01 | B125: IDP | C125: Aleppo | D125: SY02 | E125: Al Bab | F125: SY0202 | G125: Al Bab | H125: SY020200 | I125: Olan | J125: C1204 | K125: 34
A126: 2019-04-01 | B126: IDP | C126: Aleppo | D126: SY02 | E126: Al Bab | F126: SY0202 | G126: Al Bab | H126: SY020200 | I126: Qabasin | J126: C1209 | K126: 181
A127: 2019-04-01 | B127: IDP | C127: Aleppo | D127: SY02 | E127: Al Bab | F127: SY0202 | G127: Al Bab | H127: SY020200 | I127: Qdeiran | J127: C1211 | K127: 39
A128: 2019-04-01 | B128: IDP | C128: Aleppo | D128: SY02 | E128: Al Bab | F128: SY0202 | G128: Al Bab | H128: SY020200 | I128: Qubbet Elsheikh | J128: C1214 | K128: 22
A129: 2019-04-01 | B129: IDP | C129: Aleppo | D129: SY02 | E129: Al Bab | F129: SY0202 | G129: Al Bab | H129: SY020200 | I129: Saflaniyeh | J129: C1200 | K129: 39
A130: 2019-04-01 | B130: IDP | C130: Aleppo | D130: SY02 | E130: Al Bab | F130: SY0202 | G130: Al Bab | H130: SY020200 | I130: Sheikh Elwan | J130: C1196 | K130: 69
A131: 2019-04-01 | B131: IDP | C131: Aleppo | D131: SY02 | E131: Al Bab | F131: SY0202 | G131: Al Bab | H131: SY020200 | I131: Sosyan | J131: C1187 | K131: 113
A132: 2019-04-01 | B132: IDP | C132: Aleppo | D132: SY02 | E132: Al Bab | F132: SY0202 | G132: Al Bab | H132: SY020200 | I132: Su Sinbat | J132: C1190 | K132: 51
A133: 2019-04-01 | B133: IDP | C133: Aleppo | D133: SY02 | E133: Al Bab | F133: SY0202 | G133: Al Bab | H133: SY020200 | I133: Waqqah | J133: C1212 | K133: 34
A134: 2019-04-01 | B134: IDP | C134: Aleppo | D134: SY02 | E134: Afrin | F134: SY0203 | G134: Sheikh El-Hadid | H134: SY020305 | I134: Alwardya | J134: C6405 | K134: 23
A135: 2019-04-01 | B135: IDP | C135: Aleppo | D135: SY02 | E135: Afrin | F135: SY0203 | G135: Sheikh El-Hadid | H135: SY020305 | I135: Anqala | J135: C1528 | K135: 12
A136: 2019-04-01 | B136: IDP | C136: Aleppo | D136: SY02 | E136: Afrin | F136: SY0203 | G136: Sheikh El-Hadid | H136: SY020305 | I136: Darmash - Darmashkanli | J136: C1531 | K136: 11
A137: 2019-04-01 | B137: IDP | C137: Aleppo | D137: SY02 | E137: Afrin | F137: SY0203 | G137: Sheikh El-Hadid | H137: SY020305 | I137: Haj Belal | J137: C8208 | K137: 51
A138: 2019-04-01 | B138: IDP | C138: Aleppo | D138: SY02 | E138: Afrin | F138: SY0203 | G138: Sheikh El-Hadid | H138: SY020305 | I138: Kalanli | J138: C6406 | K138: 28
A139: 2019-04-01 | B139: IDP | C139: Aleppo | D139: SY02 | E139: Afrin | F139: SY0203 | G139: Sheikh El-Hadid | H139: SY020305 | I139: Khazafiyeh - Qorret Matlaq | J139: C1527 | K139: 17
A140: 2019-04-01 | B140: IDP | C140: Aleppo | D140: SY02 | E140: Afrin | F140: SY0203 | G140: Sheikh El-Hadid | H140: SY020305 | I140: Maghar - Maghar Jeq | J140: C1533 | K140: 17
A141: 2019-04-01 | B141: IDP | C141: Aleppo | D141: SY02 | E141: Afrin | F141: SY0203 | G141: Sheikh El-Hadid | H141: SY020305 | I141: Mazineh - Aranda | J141: C1530 | K141: 28
A142: 2019-04-01 | B142: IDP | C142: Aleppo | D142: SY02 | E142: Afrin | F142: SY0203 | G142: Sheikh El-Hadid | H142: SY020305 | I142: Mostakan | J142: C1534 | K142: 6
A143: 2019-04-01 | B143: IDP | C143: Aleppo | D143: SY02 | E143: Afrin | F143: SY0203 | G143: Sheikh El-Hadid | H143: SY020305 | I143: Sahuljuk | J143: C7524 | K143: 34
A144: 2019-04-01 | B144: IDP | C144: Aleppo | D144: SY02 | E144: Afrin | F144: SY0203 | G144: Sheikh El-Hadid | H144: SY020305 | I144: Sheikh El-Hadid | J144: C1525 | K144: 45
A145: 2019-04-01 | B145: IDP | C145: Aleppo | D145: SY02 | E145: Afrin | F145: SY0203 | G145: Sheikh El-Hadid | H145: SY020305 | I145: Sheikh Khalil | J145: C8212 | K145: 17
A146: 2019-04-01 | B146: IDP | C146: Aleppo | D146: SY02 | E146: Afrin | F146: SY0203 | G146: Sheikh El-Hadid | H146: SY020305 | I146: Sinnara | J146: C1529 | K146: 6
A147: 2019-04-01 | B147: IDP | C147: Aleppo | D147: SY02 | E147: Afrin | F147: SY0203 | G147: Sheikh El-Hadid | H147: SY020305 | I147: Tal Elthaaleb - Sheikh Jqali | J147: C1526 | K147: 6
A148: 2019-04-01 | B148: IDP | C148: Aleppo | D148: SY02 | E148: Afrin | F148: SY0203 | G148: Sheikh El-Hadid | H148: SY020305 | I148: Wadi Elthaalab - Lower Jqal | J148: C1532 | K148: 17
A149: 2019-04-01 | B149: IDP | C149: Aleppo | D149: SY02 | E149: Afrin | F149: SY0203 | G149: Jandairis | H149: SY020302 | I149: Abu Ka'ab | J149: C8151 | K149: 39
A150: 2019-04-01 | B150: IDP | C150: Aleppo | D150: SY02 | E150: Afrin | F150: SY0203 | G150: Jandairis | H150: SY020302 | I150: Baflur | J150: C8156 | K150: 32.5
A151: 2019-04-01 | B151: IDP | C151: Aleppo | D151: SY02 | E151: Afrin | F151: SY0203 | G151: Jandairis | H151: SY020302 | I151: Bayada - Jendris | J151: C1434 | K151: 11
A152: 2019-04-01 | B152: IDP | C152: Aleppo | D152: SY02 | E152: Afrin | F152: SY0203 | G152: Jandairis | H152: SY020302 | I152: Dakhm | J152: C1423 | K152: 17
A153: 2019-04-01 | B153: IDP | C153: Aleppo | D153: SY02 | E153: Afrin | F153: SY0203 | G153: Jandairis | H153: SY020302 | I153: Deir Ballut | J153: C1435 | K153: 34
A154: 2019-04-01 | B154: IDP | C154: Aleppo | D154: SY02 | E154: Afrin | F154: SY0203 | G154: Jandairis | H154: SY020302 | I154: Eastern Eshkan | J154: C1441 | K154: 29
A155: 2019-04-01 | B155: IDP | C155: Aleppo | D155: SY02 | E155: Afrin | F155: SY0203 | G155: Jandairis | H155: SY020302 | I155: Freiriyeh | J155: C1446 | K155: 47
A156: 2019-04-01 | B156: IDP | C156: Aleppo | D156: SY02 | E156: Afrin | F156: SY0203 | G156: Jandairis | H156: SY020302 | I156: Haj Eskandar | J156: C1420 | K156: 24
A157: 2019-04-01 | B157: IDP | C157: Aleppo | D157: SY02 | E157: Afrin | F157: SY0203 | G157: Jandairis | H157: SY020302 | I157: Haji Hasanli | J157: C8184 | K157: 27.5
A158: 2019-04-01 | B158: IDP | C158: Aleppo | D158: SY02 | E158: Afrin | F158: SY0203 | G158: Jandairis | H158: SY020302 | I158: Hajilar | J158: C8150 | K158: 102
A159: 2019-04-01 | B159: IDP | C159: Aleppo | D159: SY02 | E159: Afrin | F159: SY0203 | G159: Jandairis | H159: SY020302 | I159: Hamam | J159: C1427 | K159: 57
A160: 2019-04-01 | B160: IDP | C160: Aleppo | D160: SY02 | E160: Afrin | F160: SY0203 | G160: Jandairis | H160: SY020302 | I160: Hikageh | J160: C8166 | K160: 60
A161: 2019-04-01 | B161: IDP | C161: Aleppo | D161: SY02 | E161: Afrin | F161: SY0203 | G161: Jandairis | H161: SY020302 | I161: Jalma | J161: C1424 | K161: 11
A162: 2019-04-01 | B162: IDP | C162: Aleppo | D162: SY02 | E162: Afrin | F162: SY0203 | G162: Jandairis | H162: SY020302 | I162: Jandairis | J162: C1426 | K162: 160
A163: 2019-04-01 | B163: IDP | C163: Aleppo | D163: SY02 | E163: Afrin | F163: SY0203 | G163: Jandairis | H163: SY020302 | I163: Jum Afrin | J163: C1421 | K163: 23
A164: 2019-04-01 | B164: IDP | C164: Aleppo | D164: SY02 | E164: Afrin | F164: SY0203 | G164: Jandairis | H164: SY020302 | I164: Kafr Safra | J164: C1449 | K164: 35
A165: 2019-04-01 | B165: IDP | C165: Aleppo | D165: SY02 | E165: Afrin | F165: SY0203 | G165: Jandairis | H165: SY020302 | I165: Kharzan | J165: C1432 | K165: 11
A166: 2019-04-01 | B166: IDP | C166: Aleppo | D166: SY02 | E166: Afrin | F166: SY0203 | G166: Jandairis | H166: SY020302 | I166: Khureibah | J166: C8161 | K166: 40
A167: 2019-04-01 | B167: IDP | C167: Aleppo | D167: SY02 | E167: Afrin | F167: SY0203 | G167: Jandairis | H167: SY020302 | I167: Koban | J167: C7490 | K167: 11
A168: 2019-04-01 | B168: IDP | C168: Aleppo | D168: SY02 | E168: Afrin | F168: SY0203 | G168: Jandairis | H168: SY020302 | I168: Koran Jandris | J168: C1447 | K168: 40
A169: 2019-04-01 | B169: IDP | C169: Aleppo | D169: SY02 | E169: Afrin | F169: SY0203 | G169: Jandairis | H169: SY020302 | I169: Kordan | J169: C1445 | K169: 11
A170: 2019-04-01 | B170: IDP | C170: Aleppo | D170: SY02 | E170: Afrin | F170: SY0203 | G170: Jandairis | H170: SY020302 | I170: Lower Kafardali | J170: C1448 | K170: 17
A171: 2019-04-01 | B171: IDP | C171: Aleppo | D171: SY02 | E171: Afrin | F171: SY0203 | G171: Jandairis | H171: SY020302 | I171: Lower-Marwana | J171: C6399 | K171: 51
A172: 2019-04-01 | B172: IDP | C172: Aleppo | D172: SY02 | E172: Afrin | F172: SY0203 | G172: Jandairis | H172: SY020302 | I172: Mhamadia | J172: C8135 | K172: 34
A173: 2019-04-01 | B173: IDP | C173: Aleppo | D173: SY02 | E173: Afrin | F173: SY0203 | G173: Jandairis | H173: SY020302 | I173: Nisriyeh | J173: C1439 | K173: 56
A174: 2019-04-01 | B174: IDP | C174: Aleppo | D174: SY02 | E174: Afrin | F174: SY0203 | G174: Jandairis | H174: SY020302 | I174: Qila | J174: C8160 | K174: 18.5
A175: 2019-04-01 | B175: IDP | C175: Aleppo | D175: SY02 | E175: Afrin | F175: SY0203 | G175: Jandairis | H175: SY020302 | I175: Ramadiyeh | J175: C1422 | K175: 40
A176: 2019-04-01 | B176: IDP | C176: Aleppo | D176: SY02 | E176: Afrin | F176: SY0203 | G176: Jandairis | H176: SY020302 | I176: Sheikh Abel Rahman | J176: C1419 | K176: 17
A177: 2019-04-01 | B177: IDP | C177: Aleppo | D177: SY02 | E177: Afrin | F177: SY0203 | G177: Jandairis | H177: SY020302 | I177: Tal Slur | J177: C1433 | K177: 45
A178: 2019-04-01 | B178: IDP | C178: Aleppo | D178: SY02 | E178: Afrin | F178: SY0203 | G178: Jandairis | H178: SY020302 | I178: Tatara-Tataranli | J178: C6398 | K178: 17
A179: 2019-04-01 | B179: IDP | C179: Aleppo | D179: SY02 | E179: Afrin | F179: SY0203 | G179: Jandairis | H179: SY020302 | I179: Upper Diwan | J179: C1431 | K179: 35
A180: 2019-04-01 | B180: IDP | C180: Aleppo | D180: SY02 | E180: Afrin | F180: SY0203 | G180: Jandairis | H180: SY020302 | I180: Upper Kafardali | J180: C1442 | K180: 23
A181: 2019-04-01 | B181: IDP | C181: Aleppo | D181: SY02 | E181: Afrin | F181: SY0203 | G181: Jandairis | H181: SY020302 | I181: Upper Marwana | J181: C1443 | K181: 6
A182: 2019-04-01 | B182: IDP | C182: Aleppo | D182: SY02 | E182: Afrin | F182: SY0203 | G182: Jandairis | H182: SY020302 | I182: Western Eshkab | J182: C1437 | K182: 74
A183: 2019-04-01 | B183: IDP | C183: Aleppo | D183: SY02 | E183: Afrin | F183: SY0203 | G183: Jandairis | H183: SY020302 | I183: Western Khaltan | J183: C1436 | K183: 11
A184: 2019-04-01 | B184: IDP | C184: Aleppo | D184: SY02 | E184: Afrin | F184: SY0203 | G184: Jandairis | H184: SY020302 | I184: Zalaqah | J184: C8146 | K184: 22
A185: 2019-04-01 | B185: IDP | C185: Aleppo | D185: SY02 | E185: Afrin | F185: SY0203 | G185: Jandairis | H185: SY020302 | I185: Zanda | J185: C1438 | K185: 32
A186: 2019-04-01 | B186: IDP | C186: Aleppo | D186: SY02 | E186: Afrin | F186: SY0203 | G186: Mabtali | H186: SY020306 | I186: Abraz | J186: C1547 | K186: 28
A187: 2019-04-01 | B187: IDP | C187: Aleppo | D187: SY02 | E187: Afrin | F187: SY0203 | G187: Mabtali | H187: SY020306 | I187: Al-Rahmaniyah | J187: C8216 | K187: 40
A188: 2019-04-01 | B188: IDP | C188: Aleppo | D188: SY02 | E188: Afrin | F188: SY0203 | G188: Mabtali | H188: SY020306 | I188: Amiriya - Meirkan | J188: C1543 | K188: 83
A189: 2019-04-01 | B189: IDP | C189: Aleppo | D189: SY02 | E189: Afrin | F189: SY0203 | G189: Mabtali | H189: SY020306 | I189: Anbar | J189: C1549 | K189: 56
A190: 2019-04-01 | B190: IDP | C190: Aleppo | D190: SY02 | E190: Afrin | F190: SY0203 | G190: Mabtali | H190: SY020306 | I190: Arab-Shekho | J190: C6401 | K190: 62
A191: 2019-04-01 | B191: IDP | C191: Aleppo | D191: SY02 | E191: Afrin | F191: SY0203 | G191: Mabtali | H191: SY020306 | I191: Ashur | J191: C1537 | K191: 45
A192: 2019-04-01 | B192: IDP | C192: Aleppo | D192: SY02 | E192: Afrin | F192: SY0203 | G192: Mabtali | H192: SY020306 | I192: Awlad El Arab - Arab Oshagi | J192: C1548 | K192: 51
A193: 2019-04-01 | B193: IDP | C193: Aleppo | D193: SY02 | E193: Afrin | F193: SY0203 | G193: Mabtali | H193: SY020306 | I193: Ayn Al-Hajar | J193: C8209 | K193: 50
A194: 2019-04-01 | B194: IDP | C194: Aleppo | D194: SY02 | E194: Afrin | F194: SY0203 | G194: Mabtali | H194: SY020306 | I194: Bermaja | J194: C1535 | K194: 72
A195: 2019-04-01 | B195: IDP | C195: Aleppo | D195: SY02 | E195: Afrin | F195: SY0203 | G195: Mabtali | H195: SY020306 | I195: Big Dar | J195: C1542 | K195: 55
A196: 2019-04-01 | B196: IDP | C196: Aleppo | D196: SY02 | E196: Afrin | F196: SY0203 | G196: Mabtali | H196: SY020306 | I196: Gumazanli | J196: C8200 | K196: 28
A197: 2019-04-01 | B197: IDP | C197: Aleppo | D197: SY02 | E197: Afrin | F197: SY0203 | G197: Mabtali | H197: SY020306 | I197: Haj Qassem | J197: C1541 | K197: 51
A198: 2019-04-01 | B198: IDP | C198: Aleppo | D198: SY02 | E198: Afrin | F198: SY0203 | G198: Mabtali | H198: SY020306 | I198: Hamu Raju | J198: C1538 | K198: 34
A199: 2019-04-01 | B199: IDP | C199: Aleppo | D199: SY02 | E199: Afrin | F199: SY0203 | G199: Mabtali | H199: SY020306 | I199: Jazruniyeh | J199: C1551 | K199: 56
A200: 2019-04-01 | B200: IDP | C200: Aleppo | D200: SY02 | E200: Afrin | F200: SY0203 | G200: Mabtali | H200: SY020306 | I200: Jomrokiyeh | J200: C1544 | K200: 17
... 702 more rows

Sheet IDPs stayed for more than 30day
A1: Reporting_Month | B1: IDP_Returnees | C1: Mohafaza | D1: Mohafaza PCODE | E1: Mantika | F1: Mantika PCODE | G1: Nahya | H1: Nahya PCODE | I1: Community | J1: Community PCODE | K1: IDP_Flow_Estimation
A2: 2019-04-01 | B2: IDP_Confirmed-for-month | C2: Aleppo | D2: SY02 | E2: Afrin | F2: SY0203 | G2: Afrin | H2: SY020300 | I2: Afrin | J2: C1366 | K2: 918
A3: 2019-04-01 | B3: IDP_Confirmed-for-month | C3: Aleppo | D3: SY02 | E3: Afrin | F3: SY0203 | G3: Afrin | H3: SY020300 | I3: Bablit | J3: C1351 | K3: 25
A4: 2019-04-01 | B4: IDP_Confirmed-for-month | C4: Aleppo | D4: SY02 | E4: Afrin | F4: SY0203 | G4: Afrin | H4: SY020300 | I4: Basufan | J4: C1374 | K4: 25
A5: 2019-04-01 | B5: IDP_Confirmed-for-month | C5: Aleppo | D5: SY02 | E5: Afrin | F5: SY0203 | G5: Afrin | H5: SY020300 | I5: Basuta | J5: C1376 | K5: 200
A6: 2019-04-01 | B6: IDP_Confirmed-for-month | C6: Aleppo | D6: SY02 | E6: Afrin | F6: SY0203 | G6: Afrin | H6: SY020300 | I6: Brad | J6: C1375 | K6: 95
A7: 2019-04-01 | B7: IDP_Confirmed-for-month | C7: Aleppo | D7: SY02 | E7: Afrin | F7: SY0203 | G7: Afrin | H7: SY020300 | I7: Burj Abdallah | J7: C1377 | K7: 75
A8: 2019-04-01 | B8: IDP_Confirmed-for-month | C8: Aleppo | D8: SY02 | E8: Afrin | F8: SY0203 | G8: Afrin | H8: SY020300 | I8: Ein Dara | J8: C1370 | K8: 65
A9: 2019-04-01 | B9: IDP_Confirmed-for-month | C9: Aleppo | D9: SY02 | E9: Afrin | F9: SY0203 | G9: Afrin | H9: SY020300 | I9: Fafertein | J9: C1383 | K9: 25
A10: 2019-04-01 | B10: IDP_Confirmed-for-month | C10: Aleppo | D10: SY02 | E10: Afrin | F10: SY0203 | G10: Afrin | H10: SY020300 | I10: Ghazawiyet Afrin | J10: C1378 | K10: 200
A11: 2019-04-01 | B11: IDP_Confirmed-for-month | C11: Aleppo | D11: SY02 | E11: Afrin | F11: SY0203 | G11: Afrin | H11: SY020300 | I11: Hawa | J11: C1362 | K11: 35
A12: 2019-04-01 | B12: IDP_Confirmed-for-month | C12: Aleppo | D12: SY02 | E12: Afrin | F12: SY0203 | G12: Afrin | H12: SY020300 | I12: Kafir | J12: C1390 | K12: 20
A13: 2019-04-01 | B13: IDP_Confirmed-for-month | C13: Aleppo | D13: SY02 | E13: Afrin | F13: SY0203 | G13: Afrin | H13: SY020300 | I13: Kafrshil | J13: C1385 | K13: 115
A14: 2019-04-01 | B14: IDP_Confirmed-for-month | C14: Aleppo | D14: SY02 | E14: Afrin | F14: SY0203 | G14: Afrin | H14: SY020300 | I14: Khadraa | J14: C1365 | K14: 65
A15: 2019-04-01 | B15: IDP_Confirmed-for-month | C15: Aleppo | D15: SY02 | E15: Afrin | F15: SY0203 | G15: Afrin | H15: SY020300 | I15: Muarset Khateeb | J15: C6394 | K15: 58
A16: 2019-04-01 | B16: IDP_Confirmed-for-month | C16: Aleppo | D16: SY02 | E16: Afrin | F16: SY0203 | G16: Afrin | H16: SY020300 | I16: Nireh | J16: C1368 | K16: 151
A17: 2019-04-01 | B17: IDP_Confirmed-for-month | C17: Aleppo | D17: SY02 | E17: Afrin | F17: SY0203 | G17: Afrin | H17: SY020300 | I17: Qarzihel | J17: C1387 | K17: 125
A18: 2019-04-01 | B18: IDP_Confirmed-for-month | C18: Aleppo | D18: SY02 | E18: Afrin | F18: SY0203 | G18: Afrin | H18: SY020300 | I18: Shawarghet Eljoz | J18: C1356 | K18: 22
A19: 2019-04-01 | B19: IDP_Confirmed-for-month | C19: Aleppo | D19: SY02 | E19: Afrin | F19: SY0203 | G19: Afrin | H19: SY020300 | I19: Tal Tawil | J19: C6333 | K19: 65
A20: 2019-04-01 | B20: IDP_Confirmed-for-month | C20: Aleppo | D20: SY02 | E20: Afrin | F20: SY0203 | G20: Jandairis | H20: SY020302 | I20: Abu Ka'ab | J20: C8151 | K20: 33
A21: 2019-04-01 | B21: IDP_Confirmed-for-month | C21: Aleppo | D21: SY02 | E21: Afrin | F21: SY0203 | G21: Jandairis | H21: SY020302 | I21: Baflur | J21: C8156 | K21: 43
A22: 2019-04-01 | B22: IDP_Confirmed-for-month | C22: Aleppo | D22: SY02 | E22: Afrin | F22: SY0203 | G22: Jandairis | H22: SY020302 | I22: Bayada - Jendris | J22: C1434 | K22: 39
A23: 2019-04-01 | B23: IDP_Confirmed-for-month | C23: Aleppo | D23: SY02 | E23: Afrin | F23: SY0203 | G23: Jandairis | H23: SY020302 | I23: Freiriyeh | J23: C1446 | K23: 43
A24: 2019-04-01 | B24: IDP_Confirmed-for-month | C24: Aleppo | D24: SY02 | E24: Afrin | F24: SY0203 | G24: Jandairis | H24: SY020302 | I24: Haj Eskandar | J24: C1420 | K24: 25
A25: 2019-04-01 | B25: IDP_Confirmed-for-month | C25: Aleppo | D25: SY02 | E25: Afrin | F25: SY0203 | G25: Jandairis | H25: SY020302 | I25: Haji Hasanli | J25: C8184 | K25: 27
A26: 2019-04-01 | B26: IDP_Confirmed-for-month | C26: Aleppo | D26: SY02 | E26: Afrin | F26: SY0203 | G26: Jandairis | H26: SY020302 | I26: Hajilar | J26: C8150 | K26: 19
A27: 2019-04-01 | B27: IDP_Confirmed-for-month | C27: Aleppo | D27: SY02 | E27: Afrin | F27: SY0203 | G27: Jandairis | H27: SY020302 | I27: Hikageh | J27: C8166 | K27: 46
A28: 2019-04-01 | B28: IDP_Confirmed-for-month | C28: Aleppo | D28: SY02 | E28: Afrin | F28: SY0203 | G28: Jandairis | H28: SY020302 | I28: Jalma | J28: C1424 | K28: 52
A29: 2019-04-01 | B29: IDP_Confirmed-for-month | C29: Aleppo | D29: SY02 | E29: Afrin | F29: SY0203 | G29: Jandairis | H29: SY020302 | I29: Jandairis | J29: C1426 | K29: 1730
A30: 2019-04-01 | B30: IDP_Confirmed-for-month | C30: Aleppo | D30: SY02 | E30: Afrin | F30: SY0203 | G30: Jandairis | H30: SY020302 | I30: Kafr Safra | J30: C1449 | K30: 35
A31: 2019-04-01 | B31: IDP_Confirmed-for-month | C31: Aleppo | D31: SY02 | E31: Afrin | F31: SY0203 | G31: Jandairis | H31: SY020302 | I31: Khureibah | J31: C8161 | K31: 15
A32: 2019-04-01 | B32: IDP_Confirmed-for-month | C32: Aleppo | D32: SY02 | E32: Afrin | F32: SY0203 | G32: Jandairis | H32: SY020302 | I32: Lower-Marwana | J32: C6399 | K32: 24
A33: 2019-04-01 | B33: IDP_Confirmed-for-month | C33: Aleppo | D33: SY02 | E33: Afrin | F33: SY0203 | G33: Jandairis | H33: SY020302 | I33: Qila | J33: C8160 | K33: 20
A34: 2019-04-01 | B34: IDP_Confirmed-for-month | C34: Aleppo | D34: SY02 | E34: Afrin | F34: SY0203 | G34: Jandairis | H34: SY020302 | I34: Upper Diwan | J34: C1431 | K34: 35
A35: 2019-04-01 | B35: IDP_Confirmed-for-month | C35: Aleppo | D35: SY02 | E35: Afrin | F35: SY0203 | G35: Jandairis | H35: SY020302 | I35: Western Eshkab | J35: C1437 | K35: 19
A36: 2019-04-01 | B36: IDP_Confirmed-for-month | C36: Aleppo | D36: SY02 | E36: Afrin | F36: SY0203 | G36: Jandairis | H36: SY020302 | I36: Western Khaltan | J36: C1436 | K36: 28
A37: 2019-04-01 | B37: IDP_Confirmed-for-month | C37: Aleppo | D37: SY02 | E37: Afrin | F37: SY0203 | G37: Jandairis | H37: SY020302 | I37: Zalaqah | J37: C8146 | K37: 45
A38: 2019-04-01 | B38: IDP_Confirmed-for-month | C38: Aleppo | D38: SY02 | E38: Afrin | F38: SY0203 | G38: Jandairis | H38: SY020302 | I38: Zanda | J38: C1438 | K38: 32
A39: 2019-04-01 | B39: IDP_Confirmed-for-month | C39: Aleppo | D39: SY02 | E39: Afrin | F39: SY0203 | G39: Raju | H39: SY020303 | I39: Haj Khalil | J39: C1455 | K39: 20
A40: 2019-04-01 | B40: IDP_Confirmed-for-month | C40: Aleppo | D40: SY02 | E40: Afrin | F40: SY0203 | G40: Raju | H40: SY020303 | I40: Shekh Bilal | J40: C6402 | K40: 15
A41: 2019-04-01 | B41: IDP_Confirmed-for-month | C41: Aleppo | D41: SY02 | E41: Afrin | F41: SY0203 | G41: Raju | H41: SY020303 | I41: Tholathiyeh | J41: C1469 | K41: 200
A42: 2019-04-01 | B42: IDP_Confirmed-for-month | C42: Aleppo | D42: SY02 | E42: Afrin | F42: SY0203 | G42: Sharan | H42: SY020304 | I42: Kafroum | J42: C1522 | K42: 22
A43: 2019-04-01 | B43: IDP_Confirmed-for-month | C43: Aleppo | D43: SY02 | E43: Afrin | F43: SY0203 | G43: Sharan | H43: SY020304 | I43: Qatmet Efrin | J43: C1524 | K43: 225
A44: 2019-04-01 | B44: IDP_Confirmed-for-month | C44: Aleppo | D44: SY02 | E44: Afrin | F44: SY0203 | G44: Sheikh El-Hadid | H44: SY020305 | I44: Alwardya | J44: C6405 | K44: 15
A45: 2019-04-01 | B45: IDP_Confirmed-for-month | C45: Aleppo | D45: SY02 | E45: Afrin | F45: SY0203 | G45: Sheikh El-Hadid | H45: SY020305 | I45: Darmash - Darmashkanli | J45: C1531 | K45: 10
A46: 2019-04-01 | B46: IDP_Confirmed-for-month | C46: Aleppo | D46: SY02 | E46: Afrin | F46: SY0203 | G46: Sheikh El-Hadid | H46: SY020305 | I46: Sheikh El-Hadid | J46: C1525 | K46: 50
A47: 2019-04-01 | B47: IDP_Confirmed-for-month | C47: Aleppo | D47: SY02 | E47: Afrin | F47: SY0203 | G47: Sheikh El-Hadid | H47: SY020305 | I47: Tal Elthaaleb - Sheikh Jqali | J47: C1526 | K47: 10
A48: 2019-04-01 | B48: IDP_Confirmed-for-month | C48: Aleppo | D48: SY02 | E48: Al Bab | F48: SY0202 | G48: Al Bab | H48: SY020200 | I48: Al Bab | J48: C1202 | K48: 830
A49: 2019-04-01 | B49: IDP_Confirmed-for-month | C49: Aleppo | D49: SY02 | E49: Al Bab | F49: SY0202 | G49: Ar-Raee | H49: SY020203 | I49: Ar-Ra'ee | J49: C1250 | K49: 15
A50: 2019-04-01 | B50: IDP_Confirmed-for-month | C50: Aleppo | D50: SY02 | E50: Al Bab | F50: SY0202 | G50: Ar-Raee | H50: SY020203 | I50: Tal Elhawa | J50: C1269 | K50: 5
A51: 2019-04-01 | B51: IDP_Confirmed-for-month | C51: Aleppo | D51: SY02 | E51: Al Bab | F51: SY0202 | G51: Ar-Raee | H51: SY020203 | I51: Waqf | J51: C1247 | K51: 5
A52: 2019-04-01 | B52: IDP_Confirmed-for-month | C52: Aleppo | D52: SY02 | E52: Azaz | F52: SY0204 | G52: Aghtrin | H52: SY020401 | I52: Akhtrein | J52: C1581 | K52: 40
A53: 2019-04-01 | B53: IDP_Confirmed-for-month | C53: Aleppo | D53: SY02 | E53: Azaz | F53: SY0204 | G53: Aghtrin | H53: SY020401 | I53: Al Salihiyah Maree | J53: C7502 | K53: 20
A54: 2019-04-01 | B54: IDP_Confirmed-for-month | C54: Aleppo | D54: SY02 | E54: Azaz | F54: SY0204 | G54: Aghtrin | H54: SY020401 | I54: Aziziyeh | J54: C1578 | K54: 5
A55: 2019-04-01 | B55: IDP_Confirmed-for-month | C55: Aleppo | D55: SY02 | E55: Azaz | F55: SY0204 | G55: Aghtrin | H55: SY020401 | I55: Baruz | J55: C1582 | K55: 10
A56: 2019-04-01 | B56: IDP_Confirmed-for-month | C56: Aleppo | D56: SY02 | E56: Azaz | F56: SY0204 | G56: Aghtrin | H56: SY020401 | I56: Dabeq | J56: C1597 | K56: 20
A57: 2019-04-01 | B57: IDP_Confirmed-for-month | C57: Aleppo | D57: SY02 | E57: Azaz | F57: SY0204 | G57: Aghtrin | H57: SY020401 | I57: Turkman Bareh | J57: C1605 | K57: 10
A58: 2019-04-01 | B58: IDP_Confirmed-for-month | C58: Aleppo | D58: SY02 | E58: Azaz | F58: SY0204 | G58: Aghtrin | H58: SY020401 | I58: Tuwainiyah | J58: C7487 | K58: 15
A59: 2019-04-01 | B59: IDP_Confirmed-for-month | C59: Aleppo | D59: SY02 | E59: Azaz | F59: SY0204 | G59: Aghtrin | H59: SY020401 | I59: Western Tal Aar | J59: C1595 | K59: 15
A60: 2019-04-01 | B60: IDP_Confirmed-for-month | C60: Aleppo | D60: SY02 | E60: Azaz | F60: SY0204 | G60: Aghtrin | H60: SY020401 | I60: Zayadiyeh | J60: C1579 | K60: 20
A61: 2019-04-01 | B61: IDP_Confirmed-for-month | C61: Aleppo | D61: SY02 | E61: Azaz | F61: SY0204 | G61: Azaz | H61: SY020400 | I61: Azaz | J61: C1564 | K61: 120
A62: 2019-04-01 | B62: IDP_Confirmed-for-month | C62: Aleppo | D62: SY02 | E62: Azaz | F62: SY0204 | G62: Suran | H62: SY020405 | I62: Albil | J62: C1669 | K62: 722
A63: 2019-04-01 | B63: IDP_Confirmed-for-month | C63: Aleppo | D63: SY02 | E63: Jarablus | F63: SY0208 | G63: Ghandorah | H63: SY020801 | I63: Qubbet Elturkman | J63: C2263 | K63: 35
A64: 2019-04-01 | B64: IDP_Confirmed-for-month | C64: Aleppo | D64: SY02 | E64: Jarablus | F64: SY0208 | G64: Ghandorah | H64: SY020801 | I64: Thaheriya Jrables | J64: C2257 | K64: 15
A65: 2019-04-01 | B65: IDP_Confirmed-for-month | C65: Aleppo | D65: SY02 | E65: Jarablus | F65: SY0208 | G65: Jarablus | H65: SY020800 | I65: Ayn Al Bayda | J65: C7629 | K65: 16
A66: 2019-04-01 | B66: IDP_Confirmed-for-month | C66: Aleppo | D66: SY02 | E66: Jarablus | F66: SY0208 | G66: Jarablus | H66: SY020800 | I66: Jarablus | J66: C2227 | K66: 447
A67: 2019-04-01 | B67: IDP_Confirmed-for-month | C67: Aleppo | D67: SY02 | E67: Jarablus | F67: SY0208 | G67: Jarablus | H67: SY020800 | I67: Lower Jrables | J67: C2226 | K67: 165
A68: 2019-04-01 | B68: IDP_Confirmed-for-month | C68: Aleppo | D68: SY02 | E68: Jarablus | F68: SY0208 | G68: Jarablus | H68: SY020800 | I68: Marma Elhajar | J68: C2238 | K68: 30
A69: 2019-04-01 | B69: IDP_Confirmed-for-month | C69: Aleppo | D69: SY02 | E69: Jarablus | F69: SY0208 | G69: Jarablus | H69: SY020800 | I69: Qandariya | J69: C2241 | K69: 7
A70: 2019-04-01 | B70: IDP_Confirmed-for-month | C70: Aleppo | D70: SY02 | E70: Jebel Saman | F70: SY0200 | G70: Atareb | H70: SY020001 | I70: Abin Samaan | J70: C1026 | K70: 150
A71: 2019-04-01 | B71: IDP_Confirmed-for-month | C71: Aleppo | D71: SY02 | E71: Jebel Saman | F71: SY0200 | G71: Atareb | H71: SY020001 | I71: Abzemo | J71: C1030 | K71: 250
A72: 2019-04-01 | B72: IDP_Confirmed-for-month | C72: Aleppo | D72: SY02 | E72: Jebel Saman | F72: SY0200 | G72: Atareb | H72: SY020001 | I72: Ajel | J72: C6753 | K72: 60
A73: 2019-04-01 | B73: IDP_Confirmed-for-month | C73: Aleppo | D73: SY02 | E73: Jebel Saman | F73: SY0200 | G73: Atareb | H73: SY020001 | I73: Halazon | J73: C6424 | K73: 200
A74: 2019-04-01 | B74: IDP_Confirmed-for-month | C74: Aleppo | D74: SY02 | E74: Jebel Saman | F74: SY0200 | G74: Atareb | H74: SY020001 | I74: Jeineh | J74: C1032 | K74: 25
A75: 2019-04-01 | B75: IDP_Confirmed-for-month | C75: Aleppo | D75: SY02 | E75: Jebel Saman | F75: SY0200 | G75: Atareb | H75: SY020001 | I75: Kafr Karmin | J75: C1035 | K75: 25
A76: 2019-04-01 | B76: IDP_Confirmed-for-month | C76: Aleppo | D76: SY02 | E76: Jebel Saman | F76: SY0200 | G76: Atareb | H76: SY020001 | I76: Kafr Naha | J76: C1034 | K76: 25
A77: 2019-04-01 | B77: IDP_Confirmed-for-month | C77: Aleppo | D77: SY02 | E77: Jebel Saman | F77: SY0200 | G77: Atareb | H77: SY020001 | I77: Kafr Noran | J77: C1041 | K77: 50
A78: 2019-04-01 | B78: IDP_Confirmed-for-month | C78: Aleppo | D78: SY02 | E78: Jebel Saman | F78: SY0200 | G78: Atareb | H78: SY020001 | I78: Kafr Taal | J78: C1037 | K78: 125
A79: 2019-04-01 | B79: IDP_Confirmed-for-month | C79: Aleppo | D79: SY02 | E79: Jebel Saman | F79: SY0200 | G79: Atareb | H79: SY020001 | I79: Oweijel | J79: C1024 | K79: 140
A80: 2019-04-01 | B80: IDP_Confirmed-for-month | C80: Aleppo | D80: SY02 | E80: Jebel Saman | F80: SY0200 | G80: Atareb | H80: SY020001 | I80: Sahara | J80: C1023 | K80: 300
A81: 2019-04-01 | B81: IDP_Confirmed-for-month | C81: Aleppo | D81: SY02 | E81: Jebel Saman | F81: SY0200 | G81: Atareb | H81: SY020001 | I81: Tuwama | J81: C1020 | K81: 40
A82: 2019-04-01 | B82: IDP_Confirmed-for-month | C82: Aleppo | D82: SY02 | E82: Jebel Saman | F82: SY0200 | G82: Atareb | H82: SY020001 | I82: Western Kafr Jum | J82: C1040 | K82: 250
A83: 2019-04-01 | B83: IDP_Confirmed-for-month | C83: Aleppo | D83: SY02 | E83: Jebel Saman | F83: SY0200 | G83: Daret Azza | H83: SY020004 | I83: Anjara | J83: C1144 | K83: 175
A84: 2019-04-01 | B84: IDP_Confirmed-for-month | C84: Aleppo | D84: SY02 | E84: Jebel Saman | F84: SY0200 | G84: Daret Azza | H84: SY020004 | I84: Arhab | J84: C1142 | K84: 40
A85: 2019-04-01 | B85: IDP_Confirmed-for-month | C85: Aleppo | D85: SY02 | E85: Jebel Saman | F85: SY0200 | G85: Daret Azza | H85: SY020004 | I85: Bala | J85: C6756 | K85: 20
A86: 2019-04-01 | B86: IDP_Confirmed-for-month | C86: Aleppo | D86: SY02 | E86: Jebel Saman | F86: SY0200 | G86: Daret Azza | H86: SY020004 | I86: Bishqatine | J86: C1145 | K86: 35
A87: 2019-04-01 | B87: IDP_Confirmed-for-month | C87: Aleppo | D87: SY02 | E87: Jebel Saman | F87: SY0200 | G87: Daret Azza | H87: SY020004 | I87: Bsartun | J87: C1147 | K87: 75
A88: 2019-04-01 | B88: IDP_Confirmed-for-month | C88: Aleppo | D88: SY02 | E88: Jebel Saman | F88: SY0200 | G88: Daret Azza | H88: SY020004 | I88: Daret Azza | J88: C1139 | K88: 30
A89: 2019-04-01 | B89: IDP_Confirmed-for-month | C89: Aleppo | D89: SY02 | E89: Jebel Saman | F89: SY0200 | G89: Daret Azza | H89: SY020004 | I89: Deir Samaan | J89: C6766 | K89: 115
A90: 2019-04-01 | B90: IDP_Confirmed-for-month | C90: Aleppo | D90: SY02 | E90: Jebel Saman | F90: SY0200 | G90: Daret Azza | H90: SY020004 | I90: Hoteh | J90: C1146 | K90: 50
A91: 2019-04-01 | B91: IDP_Confirmed-for-month | C91: Aleppo | D91: SY02 | E91: Jebel Saman | F91: SY0200 | G91: Daret Azza | H91: SY020004 | I91: Jamiyat Azar | J91: C7393 | K91: 10
A92: 2019-04-01 | B92: IDP_Confirmed-for-month | C92: Aleppo | D92: SY02 | E92: Jebel Saman | F92: SY0200 | G92: Daret Azza | H92: SY020004 | I92: Kafrantin | J92: C1149 | K92: 15
A93: 2019-04-01 | B93: IDP_Confirmed-for-month | C93: Aleppo | D93: SY02 | E93: Jebel Saman | F93: SY0200 | G93: Daret Azza | H93: SY020004 | I93: Majbineh | J93: C1148 | K93: 100
A94: 2019-04-01 | B94: IDP_Confirmed-for-month | C94: Aleppo | D94: SY02 | E94: Jebel Saman | F94: SY0200 | G94: Daret Azza | H94: SY020004 | I94: Qabtan Eljabal | J94: C1150 | K94: 30
A95: 2019-04-01 | B95: IDP_Confirmed-for-month | C95: Aleppo | D95: SY02 | E95: Jebel Saman | F95: SY0200 | G95: Daret Azza | H95: SY020004 | I95: Qasemiyeh | J95: C8085 | K95: 100
A96: 2019-04-01 | B96: IDP_Confirmed-for-month | C96: Aleppo | D96: SY02 | E96: Jebel Saman | F96: SY0200 | G96: Daret Azza | H96: SY020004 | I96: Salloum | J96: C8087 | K96: 175
A97: 2019-04-01 | B97: IDP_Confirmed-for-month | C97: Aleppo | D97: SY02 | E97: Jebel Saman | F97: SY0200 | G97: Daret Azza | H97: SY020004 | I97: Shaykh Sulayman | J97: C7441 | K97: 10
A98: 2019-04-01 | B98: IDP_Confirmed-for-month | C98: Aleppo | D98: SY02 | E98: Jebel Saman | F98: SY0200 | G98: Daret Azza | H98: SY020004 | I98: Tqad | J98: C1143 | K98: 250
A99: 2019-04-01 | B99: IDP_Confirmed-for-month | C99: Aleppo | D99: SY02 | E99: Jebel Saman | F99: SY0200 | G99: Daret Azza | H99: SY020004 | I99: Zarzita | J99: C1138 | K99: 250
A100: 2019-04-01 | B100: IDP_Confirmed-for-month | C100: Aleppo | D100: SY02 | E100: Jebel Saman | F100: SY0200 | G100: Hadher | H100: SY020006 | I100: Iss | J100: C1181 | K100: 50
A101: 2019-04-01 | B101: IDP_Confirmed-for-month | C101: Aleppo | D101: SY02 | E101: Jebel Saman | F101: SY0200 | G101: Jebel Saman | H101: SY020000 | I101: Abu shu'aylam | J101: C7358 | K101: 25
A102: 2019-04-01 | B102: IDP_Confirmed-for-month | C102: Aleppo | D102: SY02 | E102: Jebel Saman | F102: SY0200 | G102: Jebel Saman | H102: SY020000 | I102: Aleppo | J102: C1007 | K102: 476
A103: 2019-04-01 | B103: IDP_Confirmed-for-month | C103: Aleppo | D103: SY02 | E103: Jebel Saman | F103: SY0200 | G103: Jebel Saman | H103: SY020000 | I103: Kafr Dael | J103: C6426 | K103: 50
A104: 2019-04-01 | B104: IDP_Confirmed-for-month | C104: Aleppo | D104: SY02 | E104: Jebel Saman | F104: SY0200 | G104: Jebel Saman | H104: SY020000 | I104: Khan Al-Asal | J104: C6428 | K104: 20
A105: 2019-04-01 | B105: IDP_Confirmed-for-month | C105: Aleppo | D105: SY02 | E105: Jebel Saman | F105: SY0200 | G105: Jebel Saman | H105: SY020000 | I105: Zuhrat Madain | J105: C7355 | K105: 30
A106: 2019-04-01 | B106: IDP_Confirmed-for-month | C106: Aleppo | D106: SY02 | E106: Jebel Saman | F106: SY0200 | G106: Zarbah | H106: SY020005 | I106: Zeitan | J106: C1167 | K106: 300
A107: 2019-04-01 | B107: IDP_Confirmed-for-month | C107: Al-Hasakeh | D107: SY08 | E107: Al-Hasakeh | F107: SY0800 | G107: Al-Hasakeh | H107: SY080000 | I107: Al-Hasakeh | J107: C4360 | K107: 279
A108: 2019-04-01 | B108: IDP_Confirmed-for-month | C108: Al-Hasakeh | D108: SY08 | E108: Al-Hasakeh | F108: SY0800 | G108: Areesheh | H108: SY080005 | I108: Areesheh | J108: C4497 | K108: 30
A109: 2019-04-01 | B109: IDP_Confirmed-for-month | C109: Al-Hasakeh | D109: SY08 | E109: Al-Hasakeh | F109: SY0800 | G109: Areesheh | H109: SY080005 | I109: Hamadaniyeh | J109: C4501 | K109: 12
A110: 2019-04-01 | B110: IDP_Confirmed-for-month | C110: Al-Hasakeh | D110: SY08 | E110: Al-Hasakeh | F110: SY0800 | G110: Areesheh | H110: SY080005 | I110: Tal Ahmar | J110: C8073 | K110: 25
A111: 2019-04-01 | B111: IDP_Confirmed-for-month | C111: Al-Hasakeh | D111: SY08 | E111: Al-Hasakeh | F111: SY0800 | G111: Hole | H111: SY080006 | I111: Hole | J111: C4519 | K111: 8901
A112: 2019-04-01 | B112: IDP_Confirmed-for-month | C112: Al-Hasakeh | D112: SY08 | E112: Al-Hasakeh | F112: SY0800 | G112: Markada | H112: SY080003 | I112: Subayh | J112: C7248 | K112: 3
A113: 2019-04-01 | B113: IDP_Confirmed-for-month | C113: Al-Hasakeh | D113: SY08 | E113: Al-Hasakeh | F113: SY0800 | G113: Tal Tamer | H113: SY080001 | I113: Tal Tamer | J113: C4409 | K113: 13
A114: 2019-04-01 | B114: IDP_Confirmed-for-month | C114: Al-Hasakeh | D114: SY08 | E114: Al-Malikeyyeh | F114: SY0803 | G114: Al-Malikeyyeh | H114: SY080300 | I114: Al-Malikeyyeh | J114: C4881 | K114: 10
A115: 2019-04-01 | B115: IDP_Confirmed-for-month | C115: Al-Hasakeh | D115: SY08 | E115: Al-Malikeyyeh | F115: SY0803 | G115: Al-Malikeyyeh | H115: SY080300 | I115: Ein Elkhadra | J115: C4864 | K115: 50
A116: 2019-04-01 | B116: IDP_Confirmed-for-month | C116: Al-Hasakeh | D116: SY08 | E116: Al-Malikeyyeh | F116: SY0803 | G116: Jawadiyah | H116: SY080301 | I116: Jawadiyah | J116: C4919 | K116: 15
A117: 2019-04-01 | B117: IDP_Confirmed-for-month | C117: Al-Hasakeh | D117: SY08 | E117: Quamishli | F117: SY0802 | G117: Amuda | H117: SY080202 | I117: Amuda | J117: C4688 | K117: 42
A118: 2019-04-01 | B118: IDP_Confirmed-for-month | C118: Al-Hasakeh | D118: SY08 | E118: Quamishli | F118: SY0802 | G118: Amuda | H118: SY080202 | I118: Bahira | J118: C8329 | K118: 5
A119: 2019-04-01 | B119: IDP_Confirmed-for-month | C119: Al-Hasakeh | D119: SY08 | E119: Quamishli | F119: SY0802 | G119: Qahtaniyyeh | H119: SY080203 | I119: Qahtaniyyeh | J119: C4751 | K119: 29
A120: 2019-04-01 | B120: IDP_Confirmed-for-month | C120: Al-Hasakeh | D120: SY08 | E120: Quamishli | F120: SY0802 | G120: Quamishli | H120: SY080200 | I120: Quamishli | J120: C4564 | K120: 170
A121: 2019-04-01 | B121: IDP_Confirmed-for-month | C121: Al-Hasakeh | D121: SY08 | E121: Quamishli | F121: SY0802 | G121: Tal Hmis | H121: SY080201 | I121: Tal Hmis | J121: C4639 | K121: 20
A122: 2019-04-01 | B122: IDP_Confirmed-for-month | C122: Al-Hasakeh | D122: SY08 | E122: Ras Al Ain | F122: SY0804 | G122: Darbasiyah | H122: SY080401 | I122: Abu Jarada | J122: C5034 | K122: 6
A123: 2019-04-01 | B123: IDP_Confirmed-for-month | C123: Al-Hasakeh | D123: SY08 | E123: Ras Al Ain | F123: SY0804 | G123: Darbasiyah | H123: SY080401 | I123: Hamadaniyeh | J123: C5037 | K123: 5
A124: 2019-04-01 | B124: IDP_Confirmed-for-month | C124: Al-Hasakeh | D124: SY08 | E124: Ras Al Ain | F124: SY0804 | G124: Darbasiyah | H124: SY080401 | I124: Jatal | J124: C5041 | K124: 5
A125: 2019-04-01 | B125: IDP_Confirmed-for-month | C125: Al-Hasakeh | D125: SY08 | E125: Ras Al Ain | F125: SY0804 | G125: Darbasiyah | H125: SY080401 | I125: Rihaniyet Shamr | J125: C5043 | K125: 4
A126: 2019-04-01 | B126: IDP_Confirmed-for-month | C126: Al-Hasakeh | D126: SY08 | E126: Ras Al Ain | F126: SY0804 | G126: Darbasiyah | H126: SY080401 | I126: Second Jozat | J126: C5028 | K126: 6
A127: 2019-04-01 | B127: IDP_Confirmed-for-month | C127: Al-Hasakeh | D127: SY08 | E127: Ras Al Ain | F127: SY0804 | G127: Darbasiyah | H127: SY080401 | I127: Tal Khabbaz | J127: C5069 | K127: 7
A128: 2019-04-01 | B128: IDP_Confirmed-for-month | C128: Al-Hasakeh | D128: SY08 | E128: Ras Al Ain | F128: SY0804 | G128: Darbasiyah | H128: SY080401 | I128: Western Fatima | J128: C5071 | K128: 5
A129: 2019-04-01 | B129: IDP_Confirmed-for-month | C129: Al-Hasakeh | D129: SY08 | E129: Ras Al Ain | F129: SY0804 | G129: Ras Al Ain | H129: SY080400 | I129: Abu Rasin | J129: C5005 | K129: 30
A130: 2019-04-01 | B130: IDP_Confirmed-for-month | C130: Al-Hasakeh | D130: SY08 | E130: Ras Al Ain | F130: SY0804 | G130: Ras Al Ain | H130: SY080400 | I130: Al-Azizieh | J130: C6479 | K130: 20
A131: 2019-04-01 | B131: IDP_Confirmed-for-month | C131: Al-Hasakeh | D131: SY08 | E131: Ras Al Ain | F131: SY0804 | G131: Ras Al Ain | H131: SY080400 | I131: Qotniyeh | J131: C5021 | K131: 10
A132: 2019-04-01 | B132: IDP_Confirmed-for-month | C132: Al-Hasakeh | D132: SY08 | E132: Ras Al Ain | F132: SY0804 | G132: Ras Al Ain | H132: SY080400 | I132: Ras Al Ain | J132: C4988 | K132: 70
A133: 2019-04-01 | B133: IDP_Confirmed-for-month | C133: Ar-Raqqa | D133: SY11 | E133: Ar-Raqqa | F133: SY1101 | G133: Ar-Raqqa | H133: SY110100 | I133: Abu Kbee - East | J133: C6723 | K133: 8
A134: 2019-04-01 | B134: IDP_Confirmed-for-month | C134: Ar-Raqqa | D134: SY11 | E134: Ar-Raqqa | F134: SY1101 | G134: Ar-Raqqa | H134: SY110100 | I134: Ar-Raqqa | J134: C5710 | K134: 144
A135: 2019-04-01 | B135: IDP_Confirmed-for-month | C135: Ar-Raqqa | D135: SY11 | E135: Ath-Thawrah | F135: SY1103 | G135: Al-Thawrah | H135: SY110300 | I135: Al-Thawrah | J135: C5929 | K135: 30
A136: 2019-04-01 | B136: IDP_Confirmed-for-month | C136: Ar-Raqqa | D136: SY11 | E136: Ath-Thawrah | F136: SY1103 | G136: Al-Thawrah | H136: SY110300 | I136: Ayed Saghir | J136: C6847 | K136: 25
A137: 2019-04-01 | B137: IDP_Confirmed-for-month | C137: Ar-Raqqa | D137: SY11 | E137: Ath-Thawrah | F137: SY1103 | G137: Jurneyyeh | H137: SY110302 | I137: Jurneyyeh | J137: C5965 | K137: 40
A138: 2019-04-01 | B138: IDP_Confirmed-for-month | C138: Ar-Raqqa | D138: SY11 | E138: Ath-Thawrah | F138: SY1103 | G138: Mansura | H138: SY110301 | I138: Abbad | J138: C6846 | K138: 16
A139: 2019-04-01 | B139: IDP_Confirmed-for-month | C139: Ar-Raqqa | D139: SY11 | E139: Ath-Thawrah | F139: SY1103 | G139: Mansura | H139: SY110301 | I139: Al Ulieh | J139: C6845 | K139: 21
A140: 2019-04-01 | B140: IDP_Confirmed-for-month | C140: Ar-Raqqa | D140: SY11 | E140: Ath-Thawrah | F140: SY1103 | G140: Mansura | H140: SY110301 | I140: Hunaida | J140: C6848 | K140: 25
A141: 2019-04-01 | B141: IDP_Confirmed-for-month | C141: Ar-Raqqa | D141: SY11 | E141: Ath-Thawrah | F141: SY1103 | G141: Mansura | H141: SY110301 | I141: Sefsafa | J141: C5938 | K141: 16
A142: 2019-04-01 | B142: IDP_Confirmed-for-month | C142: Ar-Raqqa | D142: SY11 | E142: Tell Abiad | F142: SY1102 | G142: Suluk | H142: SY110201 | I142: Bab Elkheir | J142: C5882 | K142: 5
A143: 2019-04-01 | B143: IDP_Confirmed-for-month | C143: Ar-Raqqa | D143: SY11 | E143: Tell Abiad | F143: SY1102 | G143: Suluk | H143: SY110201 | I143: Iweh | J143: C5859 | K143: 10
A144: 2019-04-01 | B144: IDP_Confirmed-for-month | C144: Ar-Raqqa | D144: SY11 | E144: Tell Abiad | F144: SY1102 | G144: Suluk | H144: SY110201 | I144: Qantari | J144: C7012 | K144: 2
A145: 2019-04-01 | B145: IDP_Confirmed-for-month | C145: Ar-Raqqa | D145: SY11 | E145: Tell Abiad | F145: SY1102 | G145: Suluk | H145: SY110201 | I145: Suluk | J145: C5843 | K145: 12
A146: 2019-04-01 | B146: IDP_Confirmed-for-month | C146: Ar-Raqqa | D146: SY11 | E146: Tell Abiad | F146: SY1102 | G146: Tell Abiad | H146: SY110200 | I146: Tell Abiad | J146: C5792 | K146: 15
A147: 2019-04-01 | B147: IDP_Confirmed-for-month | C147: Damascus | D147: SY01 | E147: Damascus | F147: SY0100 | G147: Damascus | H147: SY010000 | I147: Damascus | J147: C1001 | K147: 81
A148: 2019-04-01 | B148: IDP_Confirmed-for-month | C148: Deir-ez-Zor | D148: SY09 | E148: Deir-ez-Zor | F148: SY0901 | G148: Basira | H148: SY090102 | I148: Barsham | J148: C5116 | K148: 20
A149: 2019-04-01 | B149: IDP_Confirmed-for-month | C149: Deir-ez-Zor | D149: SY09 | E149: Deir-ez-Zor | F149: SY0901 | G149: Basira | H149: SY090102 | I149: Daman | J149: C5108 | K149: 15
A150: 2019-04-01 | B150: IDP_Confirmed-for-month | C150: Deir-ez-Zor | D150: SY09 | E150: Deir-ez-Zor | F150: SY0901 | G150: Basira | H150: SY090102 | I150: Mashekh | J150: C5121 | K150: 25
A151: 2019-04-01 | B151: IDP_Confirmed-for-month | C151: Deir-ez-Zor | D151: SY09 | E151: Deir-ez-Zor | F151: SY0901 | G151: Basira | H151: SY090102 | I151: Shiheil | J151: C5119 | K151: 25
A152: 2019-04-01 | B152: IDP_Confirmed-for-month | C152: Deir-ez-Zor | D152: SY09 | E152: Deir-ez-Zor | F152: SY0901 | G152: Basira | H152: SY090102 | I152: Tib Elfal | J152: C5112 | K152: 15
A153: 2019-04-01 | B153: IDP_Confirmed-for-month | C153: Deir-ez-Zor | D153: SY09 | E153: Deir-ez-Zor | F153: SY0901 | G153: Basira | H153: SY090102 | I153: Zir | J153: C5114 | K153: 12
A154: 2019-04-01 | B154: IDP_Confirmed-for-month | C154: Deir-ez-Zor | D154: SY09 | E154: Deir-ez-Zor | F154: SY0901 | G154: Deir-ez-Zor | H154: SY090100 | I154: Deir-Ez-Zor | J154: C5086 | K154: 125
A155: 2019-04-01 | B155: IDP_Confirmed-for-month | C155: Deir-ez-Zor | D155: SY09 | E155: Deir-ez-Zor | F155: SY0901 | G155: Kisreh | H155: SY090101 | I155: Abu Khashab | J155: C5098 | K155: 25
A156: 2019-04-01 | B156: IDP_Confirmed-for-month | C156: Deir-ez-Zor | D156: SY09 | E156: Deir-ez-Zor | F156: SY0901 | G156: Kisreh | H156: SY090101 | I156: Bir Shwehan | J156: C6881 | K156: 16
A157: 2019-04-01 | B157: IDP_Confirmed-for-month | C157: Homs | D157: SY04 | E157: Al-Qusayr | F157: SY0402 | G157: Al-Qusayr | H157: SY040200 | I157: Arjun | J157: C2713 | K157: 15
A158: 2019-04-01 | B158: IDP_Confirmed-for-month | C158: Homs | D158: SY04 | E158: Al-Qusayr | F158: SY0402 | G158: Al-Qusayr | H158: SY040200 | I158: Buweit | J158: C2741 | K158: 11
A159: 2019-04-01 | B159: IDP_Confirmed-for-month | C159: Homs | D159: SY04 | E159: Al-Qusayr | F159: SY0402 | G159: Al-Qusayr | H159: SY040200 | I159: Mudan | J159: C2756 | K159: 21
A160: 2019-04-01 | B160: IDP_Confirmed-for-month | C160: Idleb | D160: SY07 | E160: Al Mara | F160: SY0702 | G160: Heish | H160: SY070205 | I160: Heish | J160: C4105 | K160: 83
A161: 2019-04-01 | B161: IDP_Confirmed-for-month | C161: Idleb | D161: SY07 | E161: Al Mara | F161: SY0702 | G161: Heish | H161: SY070205 | I161: Kafrsajna | J161: C4110 | K161: 43
A162: 2019-04-01 | B162: IDP_Confirmed-for-month | C162: Idleb | D162: SY07 | E162: Al Mara | F162: SY0702 | G162: Heish | H162: SY070205 | I162: Maysruneh | J162: C4113 | K162: 195
A163: 2019-04-01 | B163: IDP_Confirmed-for-month | C163: Idleb | D163: SY07 | E163: Al Mara | F163: SY0702 | G163: Kafr Nobol | H163: SY070203 | I163: Kafr Nobol | J163: C4068 | K163: 351
A164: 2019-04-01 | B164: IDP_Confirmed-for-month | C164: Idleb | D164: SY07 | E164: Al Mara | F164: SY0702 | G164: Kafr Nobol | H164: SY070203 | I164: Kawkabeh | J164: C4072 | K164: 54
A165: 2019-04-01 | B165: IDP_Confirmed-for-month | C165: Idleb | D165: SY07 | E165: Al Mara | F165: SY0702 | G165: Kafr Nobol | H165: SY070203 | I165: Tramla | J165: C4051 | K165: 13
A166: 2019-04-01 | B166: IDP_Confirmed-for-month | C166: Idleb | D166: SY07 | E166: Al Mara | F166: SY0702 | G166: Khan Shaykun | H166: SY070201 | I166: Abdin | J166: C3990 | K166: 130
A167: 2019-04-01 | B167: IDP_Confirmed-for-month | C167: Idleb | D167: SY07 | E167: Al Mara | F167: SY0702 | G167: Khan Shaykun | H167: SY070201 | I167: Moghr Al Honta | J167: C6708 | K167: 27
A168: 2019-04-01 | B168: IDP_Confirmed-for-month | C168: Idleb | D168: SY07 | E168: Al Mara | F168: SY0702 | G168: Maarrat An Numan | H168: SY070200 | I168: Dana | J168: C3965 | K168: 141
A169: 2019-04-01 | B169: IDP_Confirmed-for-month | C169: Idleb | D169: SY07 | E169: Al Mara | F169: SY0702 | G169: Maarrat An Numan | H169: SY070200 | I169: Eastern Deir | J169: C3962 | K169: 154
A170: 2019-04-01 | B170: IDP_Confirmed-for-month | C170: Idleb | D170: SY07 | E170: Al Mara | F170: SY0702 | G170: Maarrat An Numan | H170: SY070200 | I170: Ghadqa | J170: C3963 | K170: 372
A171: 2019-04-01 | B171: IDP_Confirmed-for-month | C171: Idleb | D171: SY07 | E171: Al Mara | F171: SY0702 | G171: Maarrat An Numan | H171: SY070200 | I171: Hazzan | J171: C3960 | K171: 26
A172: 2019-04-01 | B172: IDP_Confirmed-for-month | C172: Idleb | D172: SY07 | E172: Al Mara | F172: SY0702 | G172: Maarrat An Numan | H172: SY070200 | I172: Kweires | J172: C3979 | K172: 15
A173: 2019-04-01 | B173: IDP_Confirmed-for-month | C173: Idleb | D173: SY07 | E173: Al Mara | F173: SY0702 | G173: Maarrat An Numan | H173: SY070200 | I173: Maar Shurin | J173: C3978 | K173: 466
A174: 2019-04-01 | B174: IDP_Confirmed-for-month | C174: Idleb | D174: SY07 | E174: Al Mara | F174: SY0702 | G174: Maarrat An Numan | H174: SY070200 | I174: Sarman | J174: C3972 | K174: 40
A175: 2019-04-01 | B175: IDP_Confirmed-for-month | C175: Idleb | D175: SY07 | E175: Al Mara | F175: SY0702 | G175: Maarrat An Numan | H175: SY070200 | I175: Tal Dibis | J175: C3959 | K175: 44
A176: 2019-04-01 | B176: IDP_Confirmed-for-month | C176: Idleb | D176: SY07 | E176: Ariha | F176: SY0705 | G176: Ariha | H176: SY070500 | I176: Ariha | J176: C4278 | K176: 116
A177: 2019-04-01 | B177: IDP_Confirmed-for-month | C177: Idleb | D177: SY07 | E177: Ariha | F177: SY0705 | G177: Ariha | H177: SY070500 | I177: Banin | J177: C4274 | K177: 861
A178: 2019-04-01 | B178: IDP_Confirmed-for-month | C178: Idleb | D178: SY07 | E178: Ariha | F178: SY0705 | G178: Ariha | H178: SY070500 | I178: Kadoura | J178: C6610 | K178: 132
A179: 2019-04-01 | B179: IDP_Confirmed-for-month | C179: Idleb | D179: SY07 | E179: Ariha | F179: SY0705 | G179: Ariha | H179: SY070500 | I179: Kafrlata | J179: C4283 | K179: 48
A180: 2019-04-01 | B180: IDP_Confirmed-for-month | C180: Idleb | D180: SY07 | E180: Ariha | F180: SY0705 | G180: Ariha | H180: SY070500 | I180: Motaram | J180: C4290 | K180: 72
A181: 2019-04-01 | B181: IDP_Confirmed-for-month | C181: Idleb | D181: SY07 | E181: Ariha | F181: SY0705 | G181: Ariha | H181: SY070500 | I181: Nahliya | J181: C4286 | K181: 90
A182: 2019-04-01 | B182: IDP_Confirmed-for-month | C182: Idleb | D182: SY07 | E182: Ariha | F182: SY0705 | G182: Ariha | H182: SY070500 | I182: Sarja | J182: C4273 | K182: 270
A183: 2019-04-01 | B183: IDP_Confirmed-for-month | C183: Idleb | D183: SY07 | E183: Ariha | F183: SY0705 | G183: Ariha | H183: SY070500 | I183: Shinan | J183: C4275 | K183: 66
A184: 2019-04-01 | B184: IDP_Confirmed-for-month | C184: Idleb | D184: SY07 | E184: Ariha | F184: SY0705 | G184: Ehsem | H184: SY070501 | I184: Balshun | J184: C4296 | K184: 38
A185: 2019-04-01 | B185: IDP_Confirmed-for-month | C185: Idleb | D185: SY07 | E185: Ariha | F185: SY0705 | G185: Ehsem | H185: SY070501 | I185: Balyun | J185: C4302 | K185: 23
A186: 2019-04-01 | B186: IDP_Confirmed-for-month | C186: Idleb | D186: SY07 | E186: Ariha | F186: SY0705 | G186: Ehsem | H186: SY070501 | I186: Bara | J186: C4304 | K186: 58
A187: 2019-04-01 | B187: IDP_Confirmed-for-month | C187: Idleb | D187: SY07 | E187: Ariha | F187: SY0705 | G187: Ehsem | H187: SY070501 | I187: Deir Sunbul | J187: C4293 | K187: 125
A188: 2019-04-01 | B188: IDP_Confirmed-for-month | C188: Idleb | D188: SY07 | E188: Ariha | F188: SY0705 | G188: Ehsem | H188: SY070501 | I188: Ehsem | J188: C4295 | K188: 12
A189: 2019-04-01 | B189: IDP_Confirmed-for-month | C189: Idleb | D189: SY07 | E189: Ariha | F189: SY0705 | G189: Ehsem | H189: SY070501 | I189: Ein Laruz | J189: C4299 | K189: 46
A190: 2019-04-01 | B190: IDP_Confirmed-for-month | C190: Idleb | D190: SY07 | E190: Ariha | F190: SY0705 | G190: Ehsem | H190: SY070501 | I190: Farkya | J190: C4305 | K190: 100
A191: 2019-04-01 | B191: IDP_Confirmed-for-month | C191: Idleb | D191: SY07 | E191: Ariha | F191: SY0705 | G191: Ehsem | H191: SY070501 | I191: Joseph | J191: C4303 | K191: 89
A192: 2019-04-01 | B192: IDP_Confirmed-for-month | C192: Idleb | D192: SY07 | E192: Ariha | F192: SY0705 | G192: Ehsem | H192: SY070501 | I192: Kansafra | J192: C4309 | K192: 58
A193: 2019-04-01 | B193: IDP_Confirmed-for-month | C193: Idleb | D193: SY07 | E193: Ariha | F193: SY0705 | G193: Ehsem | H193: SY070501 | I193: Maghara | J193: C4300 | K193: 30
A194: 2019-04-01 | B194: IDP_Confirmed-for-month | C194: Idleb | D194: SY07 | E194: Ariha | F194: SY0705 | G194: Ehsem | H194: SY070501 | I194: Marayan | J194: C4308 | K194: 43
A195: 2019-04-01 | B195: IDP_Confirmed-for-month | C195: Idleb | D195: SY07 | E195: Ariha | F195: SY0705 | G195: Ehsem | H195: SY070501 | I195: Mozra | J195: C4298 | K195: 32
A196: 2019-04-01 | B196: IDP_Confirmed-for-month | C196: Idleb | D196: SY07 | E196: Ariha | F196: SY0705 | G196: Mhambal | H196: SY070502 | I196: Alyeh | J196: C6613 | K196: 17
A197: 2019-04-01 | B197: IDP_Confirmed-for-month | C197: Idleb | D197: SY07 | E197: Ariha | F197: SY0705 | G197: Mhambal | H197: SY070502 | I197: Baydar Shamsu | J197: C4310 | K197: 18
A198: 2019-04-01 | B198: IDP_Confirmed-for-month | C198: Idleb | D198: SY07 | E198: Ariha | F198: SY0705 | G198: Mhambal | H198: SY070502 | I198: Beftamun | J198: C4321 | K198: 24
A199: 2019-04-01 | B199: IDP_Confirmed-for-month | C199: Idleb | D199: SY07 | E199: Ariha | F199: SY0705 | G199: Mhambal | H199: SY070502 | I199: Jadraya | J199: C4320 | K199: 18
A200: 2019-04-01 | B200: IDP_Confirmed-for-month | C200: Idleb | D200: SY07 | E200: Ariha | F200: SY0705 | G200: Mhambal | H200: SY070502 | I200: Kafrmid | J200: C4329 | K200: 66
... 141 more rows

Sheet Summarysince2016
A1: IDP | B1: IDP | C1: IDP | D1: IDP | E1: IDP | F1: IDP | G1: IDP | H1: IDP | I1: IDP | J1: IDP | K1: IDP | L1: IDP | M1: IDP | N1: IDP | P1: IDP | Q1: IDP | R1: IDP | S1: IDP | T1: IDP | U1: IDP | V1: IDP | W1: IDP | X1: IDP | Y1: IDP | Z1: IDP | AA1: IDP | AB1: IDP | AD1: IDP | AE1: IDP | AF1: IDP | AG1: IDP | AH1: IDP | AI1: IDP | AJ1: IDP | AK1: IDP | AL1: IDP | AM1: IDP | AN1: IDP | AO1: IDP | AP1: IDP | AR1: IDP | AS1: IDP | AT1: IDP | AU1: IDP | AV1: IDP | AW1: IDP | AX1: IDP | AY1: IDP | AZ1: IDP | BA1: IDP | BB1: IDP | BC1: IDP | BD1: IDP | BF1: IDP
B2: 2016 | P2: 2017 | AD2: 2018 | AR2: 2019 | BF2: Since Jan 2016
A3: Governorate | B3: January | C3: February | D3: March | E3: April | F3: May | G3: June | H3: July | I3: August | J3: September | K3: October | L3: November | M3: December | N3: Total 2016 | P3: January | Q3: February | R3: March | S3: April | T3: May | U3: June | V3: July | W3: August | X3: September | Y3: October | Z3: November | AA3: December | AB3: Total 2017 | AD3: January | AE3: February | AF3: March | AG3: April | AH3: May | AI3: June | AJ3: July | AK3: August | AL3: September | AM3: October | AN3: November | AO3: December | AP3: Total 2018 | AR3: January | AS3: February | AT3: March | AU3: April | AV3: May | AW3: June | AX3: July | AY3: August | AZ3: September | BA3: October | BB3: November | BC3: December | BD3: Total 2018 | BF3: Total
A4: Aleppo | B4: 134951 | C4: 93867 | D4: 26346 | E4: 78044 | F4: 30378 | G4: 52616 | H4: 51335 | I4: 105490 | J4: 41070 | K4: 28030 | L4: 57902 | M4: 121720 | N4: =SUM(B4:M4) -> 821749 | P4: 32319 | Q4: 111571.5 | R4: 155397 | S4: 38800 | T4: 44658 | U4: 29349 | V4: 22960 | W4: 26927 | X4: 31007 | Y4: 66824 | Z4: 53260 | AA4: 27717 | AB4: =SUM(P4:AA4) -> 640789.5 | AD4: 64430 | AE4: 43560 | AF4: 176302 | AG4: 44673 | AH4: 48846 | AI4: 14312.5 | AJ4: 14968.5 | AK4: 12114 | AL4: 15494 | AM4: 37324 | AN4: 11150 | AO4: 11022 | AP4: =SUM(AD4:AO4) -> 494196 | AR4: 23331 | AS4: 17355.5 | AT4: 19467.5 | AU4: 21080 | BD4: =SUM(AR4:BC4) -> 81234 | BF4: =N4+AB4+AP4+BD4 -> 2037968.5
A5: Al-Hasakeh | B5: 4181 | C5: 10701 | D5: 5544 | E5: 6414 | F5: 1764 | G5: 2407 | H5: 1932 | I5: 11315 | J5: 1993 | K5: 5834 | L5: 4388 | M5: 3028 | N5: =SUM(B5:M5) -> 59501 | P5: 1885 | Q5: 2307 | R5: 6551 | S5: 6409 | T5: 8377 | U5: 15152 | V5: 10883 | W5: 6938 | X5: 34634 | Y5: 85548 | Z5: 112935 | AA5: 5532 | AB5: =SUM(P5:AA5) -> 297151 | AD5: 4021 | AE5: 1292 | AF5: 1720 | AG5: 2736 | AH5: 5341 | AI5: 3294.5 | AJ5: 1915 | AK5: 2479 | AL5: 907 | AM5: 1761 | AN5: 2181 | AO5: 4368 | AP5: =SUM(AD5:AO5) -> 32015.5 | AR5: 6991 | AS5: 29796 | AT5: 19424 | BD5: =SUM(AR5:BC5) -> 56211 | BF5: =N5+AB5+AP5+BD5 -> 444878.5
A6: Ar-Raqqa | B6: 4275 | C6: 4853 | D6: 11864 | E6: 8140 | F6: 2402 | G6: 3637 | H6: 2585 | I6: 2124 | J6: 6933 | K6: 1434 | L6: 6329 | M6: 10738 | N6: 65314 | P6: 6294 | Q6: 12936 | R6: 37516 | S6: 96430 | T6: 127728.3 | U6: 31135 | V6: 29393 | W6: 40702 | X6: 41401 | Y6: 21613 | Z6: 46191 | AB6: 491339.3 | AH6: 8274 | AI6: 3407 | AJ6: 2718 | AK6: 1522 | AL6: 2753 | AM6: 1905 | AN6: 1356 | AO6: 555 | AP6: 22490 | AR6: 191 | AS6: 427 | AT6: 150 | BD6: 768 | BF6: 579911.3
A7: As-Sweida | B7: 449 | C7: 1075 | D7: 782 | E7: 181 | F7: 3087 | G7: 833 | H7: 842 | I7: 926 | J7: 1090 | K7: 1170 | L7: 1199 | M7: 1199 | N7: 12833 | P7: 520 | Q7: 386 | R7: 633 | S7: 544 | T7: 551 | U7: 476 | V7: 340 | W7: 181 | X7: 55 | Y7: 65 | Z7: 58 | AB7: 3809 | AD7: 60 | AG7: 504 | AH7: 283 | AI7: 3015 | AJ7: 5285 | AK7: 3496 | AL7: 18 | AP7: 12661 | BD7: 0 | BF7: 29303
A8: Damascus | B8: 1767 | C8: 1955 | D8: 1507 | E8: 1436 | F8: 75 | G8: 10 | H8: 3507 | I8: 4186 | J8: 2561 | K8: 2395 | L8: 2478 | M8: 2702 | N8: 24579 | P8: 2521 | Q8: 7853 | R8: 3059 | S8: 1617 | T8: 1530 | U8: 1114 | V8: 1066 | W8: 4720 | X8: 2776 | Y8: 5290 | Z8: 15507 | AB8: 47053 | AH8: 1684 | AI8: 1575 | AJ8: 1303 | AK8: 2035 | AL8: 575 | AM8: 89 | AN8: 90 | AO8: 128 | AP8: 7479 | AR8: 69 | AS8: 109 | AT8: 67 | BD8: 245 | BF8: 79356
A9: Dar'a | B9: 41669 | C9: 67008 | D9: 22342 | E9: 19185 | F9: 20065 | G9: 6661 | H9: 10130 | I9: 7696 | J9: 7495 | K9: 10183.83333 | L9: 2825 | M9: 6702 | N9: 221961.8333 | P9: 7822 | Q9: 31333 | R9: 25144 | S9: 13620 | T9: 6600 | U9: 10956 | V9: 5330 | W9: 1095 | X9: 223 | Y9: 17370 | Z9: 5462 | AA9: 650 | AB9: 125605 | AD9: 3851 | AE9: 3920 | AF9: 12610 | AG9: 7910 | AH9: 8591 | AI9: 50759.5 | AJ9: 41123 | AK9: 340 | AN9: 1150 | AP9: 130254.5 | BD9: 0 | BF9: 477821.3333
A10: Deir-ez-Zor | B10: 18379 | C10: 7757 | D10: 5084 | E10: 2297 | F10: 1832 | G10: 1689 | H10: 2163 | I10: 881 | J10: 809 | K10: 718 | L10: 539 | M10: 596 | N10: 42744 | P10: 1531 | Q10: 1611 | R10: 1894 | S10: 4580 | T10: 2668 | U10: 3077 | V10: 4793 | W10: 5901 | X10: 87643 | Y10: 125277 | Z10: 14391 | AB10: 253366 | AH10: 2620 | AI10: 1180 | AJ10: 345 | AK10: 4457 | AL10: 5355 | AM10: 4196 | AN10: 2132 | AO10: 6026 | AP10: 26311 | AR10: 45037 | AS10: 439 | AT10: 1129 | BD10: 46605 | BF10: 369026
A11: Hama | B11: 5401 | C11: 1603 | D11: 2029 | E11: 1203 | F11: 5182 | G11: 3102 | H11: 1395 | I11: 591 | J11: 19756 | K11: 6754 | L11: 4514 | M11: 416 | N11: 51946 | P11: 1956 | Q11: 1180 | R11: 25835 | S11: 4443 | T11: 3957 | U11: 6891 | V11: 12230 | W11: 7935 | X11: 8412 | Y11: 14275 | Z11: 7308 | AA11: 11796 | AB11: 106218 | AD11: 835 | AE11: 2532 | AF11: 5177 | AG11: 803 | AH11: 1195.5 | AI11: 956.5 | AJ11: 1003 | AK11: 512 | AL11: 256 | AM11: 325 | AN11: 1287 | AO11: 148 | AP11: 15030 | AR11: 40 | AS11: 657 | AT11: 558 | AU11: 411 | BD11: 1666 | BF11: 174860
A12: Homs | B12: 2118 | C12: 19306 | D12: 7880 | E12: 2041 | F12: 3490 | G12: 8013 | H12: 9052 | I12: 6114 | J12: 1822 | K12: 1345 | L12: 1024 | M12: 983 | N12: 63188 | P12: 2616 | Q12: 366 | R12: 2785 | S12: 6898 | T12: 6162 | U12: 370 | V12: 2356 | W12: 1239 | X12: 899 | Y12: 875 | Z12: 539 | AB12: 25105 | AE12: 400 | AH12: 183 | AI12: 20 | AJ12: 1814 | AK12: 266 | AL12: 1197 | AM12: 126 | AN12: 468 | AO12: 37 | AP12: 4511 | AR12: 100 | AS12: 46 | AT12: 574 | BD12: 720 | BF12: 93524
A13: Idleb | B13: 38093 | C13: 54906 | D13: 31805 | E13: 18793 | F13: 39782.66667 | G13: 41827 | H13: 55277.5 | I13: 73365.33333 | J13: 73016 | K13: 25983 | L13: 45086.33333 | M13: 30661 | N13: 528595.8333 | P13: 21319 | Q13: 13252.33333 | R13: 24529 | S13: 68298 | T13: 42778 | U13: 27369 | V13: 29600 | W13: 36428 | X13: 44578 | Y13: 89178 | Z13: 101204 | AA13: 142544 | AB13: 641077.3333 | AD13: 184104 | AE13: 115853 | AF13: 80051 | AG13: 37375 | AH13: 44328.83333 | AI13: 27624.5 | AJ13: 25352.08333 | AK13: 28378 | AL13: 52878 | AM13: 14393 | AN13: 42372 | AO13: 33163 | AP13: 685872.4167 | AR13: 32057 | AS13: 44473.5 | AT13: 65624.5 | AU13: 34864 | BD13: 177019 | BF13: 2032564.583
A14: Lattakia | B14: 654 | C14: 1035 | D14: 2280 | E14: 1135 | G14: 245 | H14: 1117 | I14: 1984 | J14: 2024 | K14: 1499 | L14: 2837 | M14: 892 | N14: 15702 | P14: 929 | Q14: 828 | R14: 404 | S14: 2845 | T14: 1475 | U14: 1213 | V14: 1351 | W14: 2004 | X14: 1756 | Y14: 1743 | Z14: 1980 | AB14: 16528 | AH14: 1115 | AI14: 2866 | AJ14: 2654 | AK14: 2225 | AL14: 2925 | AM14: 2565 | AN14: 2240 | AO14: 1775 | AP14: 18365 | AR14: 1795 | AS14: 1515 | AT14: 1772 | BD14: 5082 | BF14: 55677
A15: Quneitra | B15: 35 | C15: 430 | D15: 615 | E15: 214 | F15: 193 | G15: 569 | H15: 45 | I15: 655 | J15: 712 | K15: 3400 | L15: 82 | M15: 57 | N15: 7007 | P15: 554 | Q15: 50 | R15: 3050 | S15: 5728 | T15: 230 | U15: 932 | V15: 60 | W15: 250 | X15: 225 | Y15: 10618 | Z15: 100 | AA15: 4 | AB15: 21801 | AD15: 255 | AE15: 350 | AF15: 200 | AG15: 512 | AH15: 385 | AI15: 23085.5 | AP15: 24787.5 | BD15: 0 | BF15: 53595.5
A16: Rural Damascus | B16: 18103 | C16: 10626 | D16: 7686 | E16: 5793 | F16: 20269 | G16: 6194 | H16: 24879 | I16: 15475 | J16: 2848 | K16: 4127 | L16: 2047 | M16: 807 | N16: 118854 | P16: 31866 | Q16: 15915 | R16: 14732 | S16: 10317 | T16: 4731 | U16: 566 | V16: 578 | W16: 2852 | X16: 10654 | Y16: 1772 | Z16: 14280 | AA16: 5520 | AB16: 113783 | AF16: 80052 | AG16: 37445 | AH16: 17649.5 | AI16: 2690 | AJ16: 7834 | AK16: 1977 | AL16: 452 | AM16: 271 | AN16: 281 | AO16: 192 | AP16: 148843.5 | AR16: 64 | AS16: 71 | AT16: 133 | BD16: 268 | BF16: 381748.5
A17: Tartous | E17: 5040 | F17: 327 | G17: 825 | H17: 653 | I17: 1209 | J17: 1655 | K17: 1667 | L17: 2427 | M17: 551 | N17: 14354 | P17: 657 | Q17: 475 | R17: 3237 | S17: 1647 | T17: 1705 | U17: 1665 | V17: 850 | W17: 825 | X17: 815 | Y17: 1264 | Z17: 1170 | AB17: 14310 | AH17: 1456 | AI17: 1486 | AJ17: 1322 | AK17: 1120 | AL17: 1210 | AM17: 1205 | AN17: 2227 | AO17: 1135 | AP17: 11161 | AR17: 1250 | AS17: 868 | AT17: 925 | BD17: 3043 | BF17: 42868
A18: Grand Total | B18: =SUM(B4:B17) -> 270075 | C18: =SUM(C4:C17) -> 275122 | D18: 125764 | E18: 149916 | F18: 128846.6667 | G18: 128628 | H18: 164912.5 | I18: 232011.3333 | J18: 163784 | K18: 94539.83333 | L18: 133677.3333 | M18: 181052 | N18: 2048328.667 | P18: 112789 | Q18: 200063.8333 | R18: 304766 | S18: =SUM(S4:S17) -> 262176 | T18: 253150.3 | U18: 130265 | V18: 121790 | W18: 137997 | X18: 265078 | Y18: 441712 | Z18: =SUM(Z4:Z17) -> 374385 | AA18: =SUM(AA4:AA17) -> 193763 | AB18: =SUM(P18:AA18) -> 2797935.133 | AD18: =SUM(AD4:AD17) -> 257556 | AE18: =SUM(AE4:AE17) -> 167907 | AF18: =SUM(AF4:AF16) -> 356112 | AG18: =SUM(AG4:AG17) -> 131958 | AH18: 141951.8333 | AI18: 136272 | AJ18: 107636.5833 | AK18: 60921 | AL18: 84020 | AM18: 64160 | AN18: 66934 | AO18: 58549 | AP18: =SUM(AD18:AO18) -> 1633977.417 | AR18: =SUM(AR4:AR17) -> 110925 | AS18: =SUM(AS4:AS17) -> 95757 | AT18: =SUM(AT4:AT17) -> 109824 | AU18: =SUM(AU4:AU17) -> 56355 | BD18: =SUM(BD4:BD17) -> 372861 | BF18: =SUM(BF4:BF17) -> 6853102.217
A19: Average of IDP flow per day | B19: =B18/31 -> 8712.096774 | C19: =C18/28 -> 9825.785714 | D19: =D18/31 -> 4056.903226 | E19: =E18/30 -> 4997.2 | F19: =F18/31 -> 4156.344086 | G19: =G18/30 -> 4287.6 | H19: =H18/31 -> 5319.758065 | I19: =I18/31 -> 7484.236559 | J19: =J18/30 -> 5459.466667 | K19: =K18/31 -> 3049.672043 | L19: =L18/30 -> 4455.911111 | M19: =M18/31 -> 5840.387097 | N19: =N18/365 -> 5611.859361 | P19: =P18/31 -> 3638.354839 | Q19: =Q18/28 -> 7145.136905 | R19: =R18/31 -> 9831.16129 | S19: =S18/30 -> 8739.2 | T19: =T18/31 -> 8166.13871 | U19: =U18/30 -> 4342.166667 | V19: =V18/31 -> 3928.709677 | W19: =W18/31 -> 4451.516129 | X19: =X18/30 -> 8835.933333 | Y19: =Y18/31 -> 14248.77419 | Z19: =Z18/30 -> 12479.5 | AA19: =AA18/30 -> 6458.766667 | AB19: =AB18/(365) -> 7665.575708 | AD19: =AD18/AD20 -> 8308.258065 | AE19: =AE18/AE20 -> 5996.678571 | AF19: =AF18/AF20 -> 11487.48387 | AG19: =AG18/AG20 -> 4398.6 | AH19: =AH18/AH20 -> 4579.091398 | AI19: =AI18/30 -> 4542.4 | AJ19: =AJ18/31 -> 3472.147849 | AK19: =AK18/31 -> 1965.193548 | AL19: =AL18/30 -> 2800.666667 | AM19: =AM18/31 -> 2069.677419 | AN19: =AN18/30 -> 2231.133333 | AO19: =AO18/30 -> 1951.633333 | AP19: =AP18/(SUM(AD20:AO20)) -> 4476.650457 | AR19: =AR18/AR20 -> 3578.225806 | AS19: =AS18/AS20 -> 3419.892857 | AT19: =AT18/AT20 -> 3542.709677 | AU19: =AU18/AU20 -> 1878.5 | BD19: =BD18/SUM(AR20:BC20) -> 3107.175 | BF19: per/day
P20: 31 | Q20: 28 | R20: 31 | S20: 30 | T20: 31 | U20: 30 | V20: 31 | W20: 31 | X20: 30 | Y20: 31 | Z20: 30 | AA20: 31 | AB20: =AB18/12 -> 233161.2611 | AD20: 31 | AE20: 28 | AF20: 31 | AG20: 30 | AH20: 31 | AI20: 30 | AJ20: 31 | AK20: 31 | AL20: 30 | AM20: 31 | AN20: 30 | AO20: 31 | AP20: =AP18/12 -> 136164.7847 | AR20: 31 | AS20: 28 | AT20: 31 | AU20: 30 | BD20: =ROUND(BD18/COUNT(AR20:BC20),0) -> 93215 | BF20: per/month
A26: Returnees | B26: Returnees | C26: Returnees | D26: Returnees | E26: Returnees | F26: Returnees | G26: Returnees | H26: Returnees | I26: Returnees | J26: Returnees | K26: Returnees | L26: Returnees | M26: Returnees | N26: Returnees | P26: Returnees | Q26: Returnees | R26: Returnees | S26: Returnees | T26: Returnees | U26: Returnees | V26: Returnees | W26: Returnees | X26: Returnees | Y26: Returnees | Z26: Returnees | AA26: Returnees | AB26: Returnees | AD26: Returnees | AE26: Returnees | AF26: Returnees | AG26: Returnees | AH26: Returnees | AI26: Returnees | AJ26: Returnees | AK26: Returnees | AL26: Returnees | AM26: Returnees | AN26: Returnees | AO26: Returnees | AP26: Returnees | AR26: Returnees | AS26: Returnees | AT26: Returnees | AU26: Returnees | AV26: Returnees | AW26: Returnees | AX26: Returnees | AY26: Returnees | AZ26: Returnees | BA26: Returnees | BB26: Returnees | BC26: Returnees | BD26: Returnees | BF26: Returnees
AD27: 2018 | AR27: 2019
A28: Governorate | AD28: January | AE28: February | AF28: March | AG28: April | AH28: May | AI28: June | AJ28: July | AK28: August | AL28: September | AM28: October | AN28: November | AO28: December | AP28: Total 2018 | AR28: January | AS28: February | AT28: March | AU28: April | AV28: May | AW28: June | AX28: July | AY28: August | AZ28: September | BA28: October | BB28: November | BC28: December | BD28: Total 2019 | BF28: TOTAL
A29: Aleppo | AK29: 12134 | AL29: 11421 | AM29: 13232 | AN29: 8530 | AO29: 11167 | AP29: =SUM(AD29:AO29) -> 56484 | AR29: 11565 | AS29: 740 | AT29: 5204 | AU29: 5686 | BD29: =SUM(AR29:BC29) -> 23195 | BF29: =AP29+BD29 -> 79679
A30: Al-Hasakeh | AK30: 1466 | AL30: 1964 | AM30: 728 | AN30: 1891 | AO30: 2122 | AP30: =SUM(AD30:AO30) -> 8171 | AR30: 19868 | AS30: 591 | AT30: 303 | AU30: 184 | BD30: =SUM(AR30:BC30) -> 20946 | BF30: 29117
A31: Ar-Raqqa | AK31: 7011 | AL31: 11289 | AM31: 4376 | AN31: 2388 | AO31: 813 | AP31: 25877 | AR31: 709 | AS31: 667 | AT31: 1160 | AU31: 630 | BD31: 3166 | BF31: 29043
A32: As-Sweida | AL32: 1615 | AM32: 475 | AP32: 2090 | AR32: 505 | AS32: 205 | AT32: 35 | AU32: 165 | BD32: 910 | BF32: 3000
A33: Damascus | AK33: 265 | AL33: 371 | AM33: 362 | AN33: 150 | AO33: 170 | AP33: 1318 | AR33: 120 | AS33: 80 | BD33: 200 | BF33: 1518
A34: Dar'a | AK34: 130825 | AL34: 45509 | AM34: 27305 | AN34: 47774 | AO34: 55664 | AP34: 307077 | AR34: 46344 | AS34: 13300 | AT34: 6659 | AU34: 2200 | BD34: 68503 | BF34: 375580
A35: Deir-ez-Zor | AK35: 3559 | AL35: 4667 | AM35: 1936 | AN35: 3145 | AO35: 3159 | AP35: 16466 | AR35: 4804 | AS35: 17117 | AT35: 5312 | AU35: 7943 | BD35: 35176 | BF35: 51642
A36: Hama | AK36: 922 | AL36: 3905 | AM36: 4306 | AN36: 6261 | AO36: 8377 | AP36: 23771 | AR36: 5147 | AS36: 984 | AT36: 9619 | AU36: 1213 | BD36: 16963 | BF36: 40734
A37: Homs | AK37: 6170 | AL37: 3255 | AM37: 2234 | AN37: 7442 | AO37: 4628 | AP37: 23729 | AR37: 5945 | AS37: 9569 | AT37: 1914.5 | AU37: 1438 | BD37: 18866.5 | BF37: 42595.5
A38: Idleb | AK38: 1111 | AL38: 675 | AM38: 16952 | AN38: 7254 | AO38: 2717 | AP38: 28709 | AR38: 553 | AS38: 1046 | AT38: 797 | AU38: 2173 | BD38: 4569 | BF38: 33278
A39: Lattakia | AN39: 530 | AO39: 75 | AP39: 605 | BD39: 0 | BF39: 605
A40: Quneitra | AK40: 11619 | AL40: 2788 | AM40: 9650 | AN40: 12762 | AO40: 4620 | AP40: 41439 | AR40: 1390 | AS40: 3725 | AT40: 770 | AU40: 650 | BD40: 6535 | BF40: 47974
A41: Rural Damascus | AK41: 13304 | AL41: 16415 | AM41: 27969 | AN41: 4140 | AO41: 26186 | AP41: 88014 | AR41: 6446 | AS41: 6874.5 | AT41: 2549 | AU41: 1338 | BD41: 17207.5 | BF41: 105221.5
A42: Tartous | AP42: 0 | BD42: 0 | BF42: 0
A43: Grand Total | AD43: =SUM(AD29:AD42) -> 0 | AE43: =SUM(AE29:AE42) -> 0 | AF43: 0 | AG43: 0 | AH43: 0 | AI43: 0 | AJ43: 0 | AK43: 188386 | AL43: 103874 | AM43: 109525 | AN43: 102267 | AO43: 119698 | AP43: 623750 | AR43: =SUM(AR29:AR42) -> 103396 | AS43: =SUM(AS29:AS42) -> 54898.5 | AT43: =SUM(AT29:AT42) -> 34322.5 | AU43: =SUM(AU29:AU42) -> 23620 | BD43: =SUM(BD29:BD42) -> 216237 | BF43: =SUM(BF29:BF42) -> 839987
A44: Average of return movements per day | AK44: =AK43/31 -> 6076.967742 | AL44: =AL43/30 -> 3462.466667 | AM44: =AM43/31 -> 3533.064516 | AN44: =AN43/30 -> 3408.9 | AO44: =AO43/31 -> 3861.225806 | AP44: =AP43/SUM(AK45:AO45) -> 4076.797386 | AR44: =AR43/AR45 -> 3335.354839 | AS44: =AS43/AS45 -> 1960.660714 | AT44: =AT43/AT45 -> 1107.177419 | AU44: =AU43/AU45 -> 787.3333333 | BD44: =BD43/SUM(AR45:BC45) -> 1801.975 | BF44: per/day
AK45: 31 | AL45: 30 | AM45: 31 | AN45: 30 | AO45: 31 | AP45: =AP43/5 -> 124750 | AR45: 31 | AS45: 28 | AT45: 31 | AU45: 30 | BD45: =ROUND(BD43/COUNT(AR45:BC45),0) -> 54059 | BF45: per/month

Sheet IDPTABLE-Origin_vs_Departure
A1: IDPs Origin to Destination Movements
A2: ↓From | To → | B2: Aleppo | C2: Al-Hasakeh | D2: Ar-Raqqa | E2: As-Sweida | F2: Damascus | G2: Dar'a | H2: Deir-ez-Zor | I2: Hama | J2: Homs | K2: Idleb | L2: Lattakia | M2: Quneitra | N2: Rural Damascus | O2: Tartous | P2: Grand Total
A3: Aleppo | B3: 8717 | K3: 1040 | P3: =SUM(B3:O3) -> 9757
A4: Al-Hasakeh | B4: 14 | P4: 14
A5: Ar-Raqqa | B5: 86 | P5: 86
A6: As-Sweida
A7: Damascus
A8: Dar'a
A9: Deir-ez-Zor | B9: 73 | P9: 73
A10: Hama | B10: 615 | I10: 411 | K10: 15001 | P10: 16027
A11: Homs
A12: Idleb | B12: 11576 | K12: 18822 | P12: 30398
A13: Lattakia
A14: Quneitra
A15: Rural Damascus
A16: Tartous
A17: Unknown
A18: Grand Total | B18: =SUM(B3:B17) -> 21081 | I18: =SUM(I3:I17) -> 411 | K18: =SUM(K3:K17) -> 34863 | P18: =SUM(P3:P17) -> 56355
A19: No estimation; getting proportion from Origin to Destination at governorate level

Sheet ReturnTABLE-Origin_vs_Departure
A1: IDP Returnees Origin to Destination Movements
A2: ↓From | To → | B2: Aleppo | C2: Al-Hasakeh | D2: Ar-Raqqa | E2: As-Sweida | F2: Damascus | G2: Dar'a | H2: Deir-ez-Zor | I2: Hama | J2: Homs | K2: Idleb | L2: Lattakia | M2: Quneitra | N2: Rural Damascus | O2: Tartous | P2: Grand Total
A3: Aleppo | B3: 4945 | C3: 6 | D3: 90 | H3: 95 | J3: 23 | K3: 8 | P3: =SUM(B3:O3) -> 5167
A4: Al-Hasakeh | C4: 61 | D4: 3 | H4: 266 | P4: =SUM(B4:O4) -> 330
A5: Ar-Raqqa | B5: 473 | D5: 477 | H5: 418 | I5: 229 | J5: 288 | P5: 1885
A6: As-Sweida | E6: 165 | G6: 107 | P6: 272
A7: Damascus | C7: 109 | D7: 60 | H7: 3897 | J7: 40 | P7: 4106
A8: Dar'a | G8: 2051 | N8: 1100 | P8: 3151
A9: Deir-ez-Zor | B9: 30 | H9: 3052 | J9: 72 | P9: 3154
A10: Hama | B10: 20 | I10: 823 | J10: 27 | P10: 870
A11: Homs | H11: 47 | J11: 633 | P11: 680
A12: Idleb | B12: 218 | I12: 160 | J12: 98 | K12: 2165 | P12: 2641
A13: Lattakia | J13: 117 | P13: 117
A14: Quneitra | G14: 35 | M14: 100 | P14: 135
A15: Rural Damascus | C15: 8 | G15: 8 | H15: 169 | J15: 81 | M15: 550 | N15: 238 | P15: 1054
A16: Tartous | J16: 59 | P16: 59
A17: Unknown | P17: 0
A18: Grand Total | B18: =SUM(B3:B17) -> 5686 | C18: =SUM(C3:C17) -> 184 | D18: 630 | E18: 165 | F18: 0 | G18: 2201 | H18: 7944 | I18: 1212 | J18: 1438 | K18: 2173 | L18: 0 | M18: 650 | N18: 1338 | O18: 0 | P18: =SUM(P3:P17) -> 23621
A19: No estimation; getting proportion from Origin to Destination at governorate level
